Cogmind - Beta 15 @@@ ROGUE MODE // 2025.08.12 @ 16:28:49 Player: naththebg Result: Escaped! Performance ------------- Evolutions (9) 4500 Regions Visited (33) 6600 Robots Destroyed (448) 2240 Value Destroyed (32697) 32697 Prototype IDs (49) 980 Alien Tech Used (0) 0 Bonus (41392) 41392 TOTAL SCORE: 88409 Bonus ------- Triggered High Security 500 High Alert Combat Kills 11183 Follower Combat Kills 16149 Entered Garrisons 2800 Used RIF Installer 8000 Aligned with FarCom 300 Win 3000 Friendly Fire -540 Cogmind --------- Core Integrity 241/1600 Matter 174/300 Energy 85/100 System Corruption 16% Temperature Cool (0) Movement Core (250) Ox4 Location To Epsilon Eridani Parts ------- > --- POWER (1) -------- (None) > --- PROPULSION (4) --- (None) > --- UTILITY (16) ----- Relay Coupler [NC] (12) Relay Coupler [Swarmer] (86) Relay Coupler [Grunt] (60) Relay Coupler [Sentry] (15) Relay Coupler [Hunter] (55) > --- WEAPON (4) ------- Enhanced Hardcell Cannon > --- INVENTORY (5) ---- Advanced Remote Datajack Peak State ------------ > --- POWER ------------ Quantum Reactor > --- PROPULSION ------- Biometal Heavy Treads Advanced Heavy Siege Treads > --- UTILITY ---------- Experimental Cooling System Large Storage Unit Layered Heavy Armor Plating Centrium Heavy Armor Plating Advanced Thermal Defense Suite Relay Coupler [NC] Relay Coupler [Swarmer] Relay Coupler [Grunt] Relay Coupler [Duelist] Relay Coupler [Sentry] Relay Coupler [Demolisher] Relay Coupler [Hunter] Relay Coupler [Proto] > --- WEAPON ----------- Enhanced Hardcell Cannon Enhanced Hardcell Cannon Advanced Remote Datajack > --- INVENTORY -------- Quantum Reactor Biometal Heavy Treads Relay Coupler [NC] Relay Coupler [Sentry] Relay Coupler [Hunter] Relay Coupler [Heavy] Relay Coupler [Heavy] AWS/Thermal Enhanced Nova Cannon Enhanced Hardcell Cannon Enhanced Hardcell Cannon Smartbomb Launcher [Rating: 161] Favorites ----------- Power Improved Deuterium Engine Engine Improved Deuterium Engine Power Core Neutrino Core Reactor Quantum Reactor Propulsion Light Treads Treads Light Treads Leg Aluminum Leg Utility Relay Coupler [Grunt] Device Improved Heat Sink Storage Large Storage Unit Processor Advanced Targeting Computer Hackware Relay Coupler [Grunt] Protection Improved Medium Armor Plating Weapon Improved Remote Datajack Energy Gun Enhanced Quantum Rifle Energy Cannon Heavy Plasma Cannon Ballistic Gun Improved Assault Rifle Ballistic Cannon Heavy Mass Driver Launcher Smartbomb Launcher Special Weapon Improved Remote Datajack Build | -11 -10 -10 -10 -9 -8 -8 -8 -8 -8 -8 -7 -7 -7 -7 -6 -6 -6 -6 -5 -5 -5 -5 -4 -4 -4 -4 -3 -3 -3 -3 -2 -2 -1 ------- Run | Yrd Mat Min Exi Min Mat Gar Mat Gar Mat Gar Fac Gar Fac Gar Fac Gar Fac Gar Fac Gar Fac Gar Fac Gar Fac Gar Res Gar Res Gar Res Gar Acc Slots Evolved 18 | . . . . . 4 . . . . . 2 . . . 2 . . . 2 . . . 2 . . . 2 . . . 2 . 2 Power . | . . . . . . . . . . . . . . . . . . . . . . . . . . . . . . . . . . Propulsion 2 | . . . . . 1 . . . . . . . . . . . . . 1 . . . . . . . . . . . . . . Utility 14 | . . . . . 2 . . . . . 2 . . . 2 . . . 1 . . . 2 . . . 2 . . . 2 . 1 Weapon 2 | . . . . . 1 . . . . . . . . . . . . . . . . . . . . . . . . . . . 1 Parts Attached 259 | 5 3 . 2 . 22 2 3 7 . 10 9 9 4 4 2 10 2 12 8 14 2 8 10 10 17 33 10 10 7 9 5 7 3 Power 19 | 1 . . 1 . 1 . . 1 . . . . 1 . . 2 . 1 . 1 . . 1 1 3 2 . . . 1 1 . 1 Engine 5 | 1 . . 1 . . . . 1 . . . . 1 . . 1 . . . . . . . . . . . . . . . . . Core 4 | . . . . . 1 . . . . . . . . . . . . . . 1 . . 1 . 1 . . . . . . . . Reactor 10 | . . . . . . . . . . . . . . . . 1 . 1 . . . . . 1 2 2 . . . 1 1 . 1 Propulsion 52 | 2 . . . . 9 1 3 1 . 3 4 1 . . . 1 . 3 1 2 . 1 3 2 4 7 . 1 . 1 . 1 1 Treads 50 | . . . . . 9 1 3 1 . 3 4 1 . . . 1 . 3 1 2 . 1 3 2 4 7 . 1 . 1 . 1 1 Leg 2 | 2 . . . . . . . . . . . . . . . . . . . . . . . . . . . . . . . . . Wheel . | . . . . . . . . . . . . . . . . . . . . . . . . . . . . . . . . . . Hover . | . . . . . . . . . . . . . . . . . . . . . . . . . . . . . . . . . . Flight . | . . . . . . . . . . . . . . . . . . . . . . . . . . . . . . . . . . Utility 119 | 1 . . 1 . 8 . . 3 . 4 4 5 1 2 2 6 2 5 4 8 1 5 3 6 8 11 7 6 5 3 4 4 . Device 15 | . . . . . 2 . . 1 . . 1 . . . 1 . . . 1 . . . . 1 1 2 3 . 2 . . . . Storage 9 | 1 . . 1 . 1 . . . . . 1 . . . 1 . . . . 1 . . . . 1 1 . 1 . . . . . Processor 4 | . . . . . 1 . . . . . . . . . . . . . . . . . . . . . 2 . . . . 1 . Hackware 64 | . . . . . . . . 1 . 4 1 5 1 2 . 5 1 4 3 4 1 3 3 4 3 7 . 5 1 3 . 3 . Protection 27 | . . . . . 4 . . 1 . . 1 . . . . 1 1 1 . 3 . 2 . 1 3 1 2 . 2 . 4 . . Artifact . | . . . . . . . . . . . . . . . . . . . . . . . . . . . . . . . . . . Weapon 69 | 1 3 . . . 4 1 . 2 . 3 1 3 2 2 . 1 . 3 3 3 1 2 3 1 2 13 3 3 2 4 . 2 1 Energy Gun 7 | 1 . . . . . . . . . 1 . . . . . . . . . . . . . . . 5 . . . . . . . Energy Cannon 11 | . . . . . 1 . . . . 2 . 3 . . . . . . . . . 1 . 1 . 1 . 1 . 1 . . . Ballistic Gun 7 | . 3 . . . 1 . . 1 . . . . . . . . . 1 . . . . . . . 1 . . . . . . . Ballistic Cannon 22 | . . . . . 1 1 . . . . . . . 2 . 1 . 1 2 1 . . 1 . 1 1 2 1 2 2 . 2 1 Launcher 8 | . . . . . 1 . . . . . . . 1 . . . . . . 1 . . 1 . . 4 . . . . . . . Special Weapon 14 | . . . . . . . . 1 . . 1 . 1 . . . . 1 1 1 1 1 1 . 1 1 1 1 . 1 . . . Impact Weapon . | . . . . . . . . . . . . . . . . . . . . . . . . . . . . . . . . . . Slashing Weapon . | . . . . . . . . . . . . . . . . . . . . . . . . . . . . . . . . . . Piercing Weapon . | . . . . . . . . . . . . . . . . . . . . . . . . . . . . . . . . . . Special Melee Weapon . | . . . . . . . . . . . . . . . . . . . . . . . . . . . . . . . . . . Unidentified Prototypes 9 | . 1 . . . . . . . . . . . 1 . . . . 2 1 . . . . . . . 3 . . . 1 . . Parts Lost 73 | . . . . . . . . 3 . 8 1 . . . . 2 . 8 4 2 . 1 3 6 6 12 1 . . 1 . . 15 Power 7 | . . . . . . . . . . . . . . . . . . . . . . . 1 1 2 1 . . . 1 . . 1 Propulsion 18 | . . . . . . . . . . 4 . . . . . . . 2 . . . . 1 2 3 3 . . . . . . 3 Utility 30 | . . . . . . . . 2 . 2 . . . . . 2 . 3 2 1 . . 1 1 1 7 1 . . . . . 7 Weapon 18 | . . . . . . . . 1 . 2 1 . . . . . . 3 2 1 . 1 . 2 . 1 . . . . . . 4 Highest Loss Streak 13 | . . . . . . . . 1 . 4 1 . . . . 1 . 6 1 1 . 1 3 3 2 4 1 . . 1 . . 13 To Critical Strikes 5 | . . . . . . . . 1 . . . . . . . . . . . 1 . . . . 1 . . . . 1 . . 1 Average Backups 13 | 4 7 8 8 9 13 14 13 13 14 13 14 13 12 12 13 15 16 14 17 17 18 18 17 17 7 11 11 11 11 11 12 11 9 Power 1 | . 1 1 1 1 1 2 2 1 1 1 1 1 1 1 1 1 1 1 1 1 1 1 . . . 1 1 1 1 . . 1 . Propulsion 1 | 2 2 2 2 2 2 3 3 3 3 1 1 1 1 1 1 1 1 . . . . . . 1 . . 1 . 1 1 1 1 . Utility 7 | . . . . . . 1 1 6 7 8 6 6 8 7 7 9 11 10 12 10 12 12 10 10 4 4 5 4 6 5 5 5 2 Weapon 3 | 1 3 5 5 6 7 8 7 2 2 2 4 4 2 3 4 3 2 1 3 4 4 3 3 3 2 3 4 3 3 4 5 4 4 Tool/Special . | . . . . . . . . . . . . . . . . . . . . . . . . . . . . . . . . . . Unused Backups 70 | . 3 1 . . 2 . 4 5 . 2 3 4 . . . 5 . 1 3 6 2 1 2 1 9 5 . 4 . 3 . 1 3 Power 5 | . . . . . 1 . 1 1 . . . . . . . 1 . . . . . . . . . 1 . . . . . . . Propulsion 7 | . 2 . . . . . 1 . . . 1 2 . . . . . . . . . . . . . . . 1 . . . . . Utility 40 | . . . . . . . . 3 . 2 1 2 . . . 2 . 1 2 5 . 1 2 1 7 2 . 2 . 3 . 1 3 Weapon 16 | . 1 1 . . 1 . 2 1 . . . . . . . 2 . . 1 . 2 . . . 2 2 . 1 . . . . . Tool/Special 2 | . . . . . . . . . . . 1 . . . . . . . . 1 . . . . . . . . . . . . . Average Slot Usage (%) 88 | . 85 85 85 85 95 100 100 93 100 94 93 92 92 91 81 90 84 73 88 91 86 91 93 90 93 88 88 88 85 79 78 81 71 Engine 2 | . 14 14 14 14 . . . 6 9 9 7 7 7 7 6 4 . . . . . . . . . . . . . . . . . Core 1 | . . . . . 8 9 9 2 . . . . . . . . . . . 1 5 5 4 1 1 . . . . . . . . Reactor 2 | . . . . . . . . . . . . . . . . 1 6 6 5 3 . . . 3 2 4 4 3 4 4 4 3 3 Treads 15 | . . . . . 24 27 27 27 27 24 20 15 15 15 13 13 12 10 15 17 17 17 17 15 19 16 9 9 9 9 8 8 7 Device 3 | . . . . . 10 9 9 9 9 6 7 2 . . 1 . . . . 1 . . . . . 5 5 4 3 7 4 5 3 Storage 5 | . 14 14 14 14 9 9 9 9 9 9 7 7 7 7 6 6 6 6 5 5 5 5 5 5 2 5 4 4 4 4 4 4 3 Hackware 32 | . . . . . . . . 6 9 17 22 27 37 38 33 42 40 33 39 40 41 45 51 48 42 35 37 39 42 38 39 41 41 Protection 4 | . . . . . 8 18 18 7 9 . 5 7 . . . 1 4 3 3 3 3 1 . . 6 4 7 9 6 4 8 5 3 Energy Cannon 3 | . . . . . 1 4 9 5 9 8 15 12 15 11 . . . . . . . 3 2 4 4 2 1 3 3 1 . . . Ballistic Gun 2 | . 25 28 28 28 23 11 . . 9 . . . . . . . . 2 . . . . . . . . . . . . . . . Ballistic Cannon 4 | . . . . . 1 10 18 14 9 5 3 . . . 13 6 6 5 9 8 . 3 5 . 4 3 6 3 2 . . 4 5 Launcher 1 | . . . . . . . . 2 . 4 . 1 . 1 . 4 . 1 . 2 5 1 . 4 . . . . . 3 4 1 . Special Weapon 3 | . . . . . . . . 3 . 3 1 7 6 6 6 6 5 1 5 3 4 4 5 4 5 3 4 4 4 2 4 4 3 Peak Build Rating 161 | 5 11 11 13 13 29 27 27 34 29 40 53 60 62 63 67 80 81 82 93 94 90 88 99 99 93 126 140 148 147 143 151 161 160 Average Rating 83 | 3 10 11 11 13 25 26 26 29 29 35 44 57 60 61 63 74 79 74 87 91 87 86 95 86 88 98 133 144 139 135 147 153 138 On Entrance 69 | . 5 11 11 13 13 27 26 27 29 29 38 53 58 62 63 67 80 77 73 93 88 84 88 99 91 93 121 138 147 132 132 151 150 Naked Turns . | . . . . . . . . . . . . . . . . . . . . . . . . . . . . . . . . . . Heaviest Build 122 | 11 16 16 19 19 56 59 59 60 46 57 66 64 59 55 71 84 88 99 95 86 79 79 78 78 78 83 95 96 109 110 104 122 108 Greatest Support 155 | 20 20 20 20 20 60 60 60 60 60 60 84 103 103 103 103 103 103 103 95 98 98 98 125 111 106 150 150 150 150 155 155 155 155 Greatest Overweight (x) 4 | . . . . . 1 . . . . 1 1 . . . . . 1 1 . . . . . 1 1 1 . . . . . . 4 Average Overweight (x) . | . . . . . . . . . . . . . . . . . . . . . . . . . . . . . . . . . . Largest Inventory Capacity 20 | 8 8 8 10 10 15 15 15 15 15 15 15 15 15 15 20 20 20 20 20 20 20 20 20 20 20 15 15 15 15 15 15 15 15 Average Capacity 16 | 7 8 8 9 10 14 15 15 15 15 15 15 15 15 15 16 20 20 20 20 20 20 20 20 20 10 15 15 15 15 15 15 15 13 Most Carried 20 | 7 8 8 10 10 15 15 15 15 15 15 15 15 15 15 16 20 20 20 20 20 20 20 20 20 20 15 15 15 15 15 15 15 15 Average Carried 15 | 5 7 8 8 10 14 15 14 14 15 14 14 14 14 14 15 17 20 16 19 19 19 19 19 19 10 14 14 14 14 14 14 14 12 Final Capacity 20 | 8 8 8 10 10 15 15 15 15 15 15 15 15 15 15 20 20 20 20 20 20 20 20 20 20 15 15 15 15 15 15 15 15 5 Final Carried 20 | 7 8 8 10 10 15 15 14 15 15 15 15 15 15 15 16 20 20 20 20 20 20 20 20 20 14 15 14 15 15 15 15 15 1 Class Distribution -------------------- 62% | Botlord-Tank 11% | Bothacker-Skirmisher 7% | Botlord-Skirmisher 4% | Botlord-Mutant 3% | Mutant Dominant Class ---------------- Mutant | -10/Materials Mutant | -10/Mines Mutant | -10/Exiles Mutant | -9/Mines Tank | -8/Materials Scavenger-Tank | -8/Garrison Scavenger-Tank | -8/Materials Bothacker-Skirmisher | -8/Garrison Bothacker-Skirmisher | -8/Materials Bothacker-Skirmisher | -8/Garrison Bothacker-Skirmisher | -7/Factory Botlord-Tank | -7/Garrison Botlord-Tank | -7/Factory Botlord-Tank | -7/Garrison Botlord-Tank | -6/Factory Botlord-Tank | -6/Garrison Botlord-Tank | -6/Factory Botlord-Tank | -6/Garrison Botlord-Tank | -5/Factory Botlord-Tank | -5/Garrison Botlord-Tank | -5/Factory Botlord-Tank | -5/Garrison Botlord-Tank | -4/Factory Botlord-Skirmisher | -4/Garrison Botlord-Tank | -4/Factory Botlord-Tank | -4/Garrison Botlord-Tank | -3/Research Botlord-Tank | -3/Garrison Botlord-Tank | -3/Research Botlord-Tank | -3/Garrison Botlord-Tank | -2/Research Botlord-Tank | -2/Garrison Botlord-Tank | -1/Access Resources | -11 -10 -10 -10 -9 -8 -8 -8 -8 -8 -8 -7 -7 -7 -7 -6 -6 -6 -6 -5 -5 -5 -5 -4 -4 -4 -4 -3 -3 -3 -3 -2 -2 -1 ----------- Run | Yrd Mat Min Exi Min Mat Gar Mat Gar Mat Gar Fac Gar Fac Gar Fac Gar Fac Gar Fac Gar Fac Gar Fac Gar Fac Gar Res Gar Res Gar Res Gar Acc Matter Collected 18255 | 250 37 . 46 . 902 170 284 634 36 786 152 269 21 480 12 677 409 1004 1071 982 . 711 725 598 747 1174 866 1073 639 1207 165 783 1345 Remotely . | . . . . . . . . . . . . . . . . . . . . . . . . . . . . . . . . . . Salvage Created 16426 | . 128 . . . 1200 239 374 573 74 697 159 644 127 708 10 832 399 765 1282 602 38 549 555 242 801 1473 787 616 392 832 . 665 663 Parts 830 | . 10 . . . 65 17 21 50 5 57 11 17 8 30 . 24 30 36 64 23 7 36 26 8 26 74 30 31 26 45 . 35 18 Haulers Intercepted 7 | . 1 . . . 2 . 1 . . . 1 . . . . . 1 . . . . . . . 1 . . . . . . . . Recyclers Shooed 6 | . . . . . 1 . . . . . . . . . . . . . 2 . . . . . 3 . . . . . . . . Parts Field Recycled . | . . . . . . . . . . . . . . . . . . . . . . . . . . . . . . . . . . Retrieved Matter . | . . . . . . . . . . . . . . . . . . . . . . . . . . . . . . . . . . Parts Self-Destructed . | . . . . . . . . . . . . . . . . . . . . . . . . . . . . . . . . . . Prevented . | . . . . . . . . . . . . . . . . . . . . . . . . . . . . . . . . . . Kills | -11 -10 -10 -10 -9 -8 -8 -8 -8 -8 -8 -7 -7 -7 -7 -6 -6 -6 -6 -5 -5 -5 -5 -4 -4 -4 -4 -3 -3 -3 -3 -2 -2 -1 ------- Run | Yrd Mat Min Exi Min Mat Gar Mat Gar Mat Gar Fac Gar Fac Gar Fac Gar Fac Gar Fac Gar Fac Gar Fac Gar Fac Gar Res Gar Res Gar Res Gar Acc Combat Hostiles Destroyed 375 | . 1 . . . 21 6 8 29 2 28 2 9 5 14 . 9 5 19 14 16 3 24 12 8 8 31 15 16 13 23 . 20 14 Melee 3 | . . . . . . . . . . 1 . . . . . . . . . . . . 1 . . . . . . . . 1 . Guns 30 | . 1 . . . 16 2 . . . 3 . . . . . . . . . . . . . . . 7 1 . . . . . . Cannons 178 | . . . . . 1 4 8 14 2 9 2 5 1 5 . 6 3 14 13 11 . 2 10 3 6 10 11 7 1 9 . 8 13 AOE 160 | . . . . . 4 . . 15 . 15 . 4 4 9 . 3 2 4 1 5 3 22 1 5 . 14 3 9 12 14 . 11 . Classes Destroyed 21 | . 4 . . . 7 1 2 . . 2 . . . . . . 1 1 1 . . . . . . . . . . . . 1 1 Worker 21 | . 1 . . . 2 . . . . . . . 1 . . . 2 . 11 . . . 2 . . . 1 . 1 . . . . Builder 5 | . . . . . . . . . . . . . . . . . 1 . 3 . . . . . 1 . . . . . . . . Tunneler 1 | . . . . . . . . . . . . . . . . . . . 1 . . . . . . . . . . . . . . Hauler 7 | . 1 . . . 2 . 1 . . . 1 . . . . . 1 . . . . . . . 1 . . . . . . . . Recycler 9 | . . . . . 1 . . . . . . . . . . . 1 . 6 . . . . . 1 . . . . . . . . Mechanic 2 | . . . . . 1 . . . . . . . . . . . . . . . . . . . 1 . . . . . . . . Operator 8 | . 1 . . . . . 1 . . . 1 . . . . . 2 . . . 2 . . . . . . . 1 . . . . Watcher 9 | . . . . . 1 . 1 . . . 1 . . . 1 1 1 . . 1 . . 1 . . . . . 1 . . . . Swarmer 113 | . . . . . 4 . . 15 . 10 . 5 . 2 . 1 . 9 . 1 3 15 . 5 1 10 . 4 12 8 . 8 . Cutter 6 | . . . . . . . . . . 2 . . . . . . . . . . . . . . . 4 . . . . . . . Saboteur 3 | . . . . . . . . . . . . . . . . . . . . . . . . . . . . . . . . 2 1 Grunt 114 | . 1 . . . 10 2 3 8 1 9 . 2 4 8 . 4 4 5 5 5 . 4 3 2 3 6 7 4 . 6 . 5 3 Brawler 6 | . . . . . 1 . . 1 . . . 1 . . . . . . . 1 . 1 . . . . . 1 . . . . . Duelist 7 | . . . . . 1 . . . . . . . . 2 . 1 . . . 1 . . . . 1 . . 1 . . . . . Protector 1 | . . . . . . . . . . . . . . . . . . . . . . . . . . . . . . . . . 1 Sentry 31 | . . . . . 5 3 3 . . 1 . 1 . 3 . 1 . 2 . 1 . 1 . . 1 4 1 2 1 . . 1 . Specialist 8 | . . . . . . 1 . 1 . . . . . . . . . . . . . 1 . . 1 2 . . . . . . 2 Hunter 26 | . . . . . . . 1 1 1 . 1 . 1 . . 1 1 2 2 . . 1 2 1 . 1 3 1 . 4 . 1 1 Programmer 61 | . . . . . . . 1 3 . 4 1 . . 1 . 1 . . 7 6 . 3 7 . 3 4 4 3 . 5 . 3 5 Behemoth 3 | . . . . . . . . . . 1 . . . . . . . . . . . 1 . 1 . . . . . . . . . Striker 4 | . . . . . . . . . . . . . . . . . . 2 . 1 . . . . . . . . . . . . 1 Thug 1 | . . . . . . . . . . 1 . . . . . . . . . . . . . . . . . . . . . . . Savage 1 | . . . . . . . . 1 . . . . . . . . . . . . . . . . . . . . . . . . . Infiltrator 1 | . . . . . . . . . . . . . . 1 . . . . . . . . . . . . . . . . . . . Best Kill Streak 22 | . 3 . . . 9 3 3 6 2 6 1 3 3 4 1 4 4 6 6 3 3 22 2 5 4 6 5 3 5 8 . 4 4 Combat Bots Only 22 | . 1 . . . 5 3 2 6 2 6 1 3 2 4 . 4 2 6 3 3 3 22 2 5 3 6 5 3 4 8 . 4 4 Max Kills in Single Turn 4 | . 1 . . . 3 1 1 4 1 4 1 2 2 2 1 2 3 2 2 2 2 4 1 3 1 4 2 2 3 3 . 3 1 Gunslinging . | . . . . . . . . . . . . . . . . . . . . . . . . . . . . . . . . . . Exploded 4 | . . . . . 3 . . 4 . 4 . 2 2 2 . 2 2 2 1 2 2 4 1 3 . 4 2 2 3 3 . 3 . Melee 1 | . . . . . . . . . . 1 . . . . . . . . . . . . 1 . . . . . . . . 1 . Uniques/NPCs Destroyed . | . . . . . . . . . . . . . . . . . . . . . . . . . . . . . . . . . . Combat | -11 -10 -10 -10 -9 -8 -8 -8 -8 -8 -8 -7 -7 -7 -7 -6 -6 -6 -6 -5 -5 -5 -5 -4 -4 -4 -4 -3 -3 -3 -3 -2 -2 -1 -------- Run | Yrd Mat Min Exi Min Mat Gar Mat Gar Mat Gar Fac Gar Fac Gar Fac Gar Fac Gar Fac Gar Fac Gar Fac Gar Fac Gar Res Gar Res Gar Res Gar Acc Hostile Shots Fired 1785 | . 1 . . . 68 27 24 77 9 87 19 54 10 45 . 34 28 111 87 54 4 39 105 107 64 172 80 34 41 82 5 42 275 Missed 548 | . 1 . . . 29 9 6 18 1 27 8 18 4 15 . 11 12 24 31 17 1 12 36 30 21 45 20 6 13 27 3 13 90 Hits 1237 | . . . . . 39 18 18 59 8 60 11 36 6 30 . 23 16 87 56 37 3 27 69 77 43 127 60 28 28 55 2 29 185 Melee 36 | . . . . . . . . . . . . . . . . 1 . 20 . . . . . . . 2 . . . . . 1 12 Projectile 1201 | . . . . . 39 18 18 59 8 60 11 36 6 30 . 22 16 67 56 37 3 27 69 77 43 125 60 28 28 55 2 28 173 AOE 32 | . . . . . . . . . . . . . . . . . . . . . . . 3 . 2 1 . . . 1 1 . 24 Critical Strikes 63 | . . . . . 2 . . 2 . 6 . . . 5 . 1 1 3 2 6 . 2 3 4 4 1 . 4 . 4 . 2 11 Part Disruptions 5 | . . . . . . . . . . . . . . . . . . . . . . . 1 . 1 1 . . . . . . 2 Damage Taken 26687 | . 14 . . . 585 257 297 729 143 1076 166 284 73 493 . 362 405 2184 1134 805 90 549 1184 1758 1373 2432 952 521 588 1079 127 547 6480 Core 3575 | . . . . . 50 42 30 57 . 151 22 26 . 50 . 84 65 322 69 78 . 82 144 299 187 174 59 50 35 105 . 35 1359 Absorbed by Shields 2651 | . . . . . . . . 92 . 33 . 55 . 119 . 194 283 130 . 114 . 58 193 151 . 88 386 219 309 96 . 131 . Reduced by Siege Mode 242 | . . . . . . . . . . . . 3 . . . . . 106 . . . . . . . 39 26 6 . 34 . . 28 Ignored by Resistances 391 | . . . . . . . . . . . 6 80 . . . . . . . . . . . . . . . . 40 91 12 112 50 Regen/Repaired (Parts) 909 | . . . . . . . . . . . . . . . . . 188 . 469 . . . . . 153 . 26 . . . . 59 14 Core Remaining (%) 66 | 100 . . . 100 . . . . . 40 . . . 86 . . . 44 . . . 77 . . . 30 . . . 80 . 97 15 Volleys Fired 1580 | . 6 . . . 73 21 26 54 8 76 17 48 8 64 1 76 52 67 82 73 12 45 64 79 80 93 71 59 51 94 14 60 106 Largest 3 | . 2 . . . 3 3 3 3 3 3 3 2 3 2 2 2 1 2 2 2 1 2 2 1 2 3 2 2 2 1 1 2 2 Hottest 217 | . 46 . . . 112 145 145 145 132 180 217 180 191 155 88 88 65 103 94 94 46 137 137 90 160 204 185 178 178 120 10 116 123 Shots Fired 2297 | . 12 . . . 213 49 68 92 24 120 30 73 11 89 2 77 52 72 141 101 12 51 77 78 111 177 112 83 59 93 14 73 131 Gun 378 | . 12 . . . 207 15 . . 8 32 . . . . . . . 5 . . . . . . . 85 8 . . . . . 6 Cannon 1342 | . . . . . 4 32 68 81 16 59 26 64 5 59 2 56 35 57 122 68 . 18 48 42 76 67 84 53 32 42 . 36 90 Launcher 162 | . . . . . 2 2 . 8 . 19 . 5 4 11 . 6 1 2 . 9 5 15 4 10 . 6 2 11 8 19 . 12 1 Special 415 | . . . . . . . . 3 . 10 4 4 2 19 . 15 16 8 19 24 7 18 25 26 35 19 18 19 19 32 14 25 34 Kinetic 1151 | . 12 . . . 209 38 52 57 16 39 3 . . . 2 56 35 62 122 68 . 8 33 5 32 54 77 27 9 9 . 36 90 Thermal 545 | . . . . . 2 9 16 24 8 28 23 64 5 59 . . . . . . . 10 15 37 44 98 15 26 23 33 . . 6 Explosive 162 | . . . . . 2 2 . 8 . 19 . 5 4 11 . 6 1 2 . 9 5 15 4 10 . 6 2 11 8 19 . 12 1 Electromagnetic 24 | . . . . . . . . . . 24 . . . . . . . . . . . . . . . . . . . . . . . Robot Hit Streak 25 | . 10 . . . 17 25 6 11 4 15 7 10 4 5 7 16 11 14 10 15 6 11 8 10 11 15 23 12 11 15 9 18 18 Robot Miss Streak 5 | . . . . . 2 2 4 3 2 3 1 4 2 3 . 1 4 3 3 3 1 4 2 5 3 4 2 2 2 3 1 3 3 Penetration Max 1 | . . . . . . . . . . . . . . . . . 1 1 1 1 . . . . . 1 . . . . . . . Secondary Targets 1 | . . . . . 1 . . . . . . . . . . . . . . . . . . . . . . . . . . . . Max Gunslinging Chain 1 | . . . . . 1 . . . . . . . . . . . . . . . . . . . . . . . . . . . . Autonomous 31 | . . . . . . . . . . . . . . . . . . . . . . . . . . 25 . . . . . . 6 Shots Hit Robots 1417 | . 10 . . . 160 32 38 45 13 69 17 46 4 47 2 56 29 50 83 62 6 21 48 47 67 113 79 51 33 51 13 39 86 Core Hits 745 | . 5 . . . 50 12 16 39 5 45 4 29 6 30 1 35 14 26 35 32 7 42 21 25 17 60 31 41 23 38 . 32 24 Critical Kills 5 | . . . . . . . . . . . . 1 . 1 . . . . . . . . . . 3 . . . . . . . . Critical Parts Destroyed 3 | . . . . . 1 . . . . . . . . . . . . . . . . . . . . 2 . . . . . . . Critical Strikes 76 | . . . . . 1 . . 1 . . . 1 . 1 . 3 6 9 11 7 . . 7 . 5 5 7 3 2 . . 2 5 Burn 1 | . . . . . . . . . . . . . . . . . . . . . . . . . . 1 . . . . . . . Meltdown 5 | . . . . . . . . . . . . 1 . 1 . . . . . . . . . . 3 . . . . . . . . Destroy 3 | . . . . . 1 . . . . . . . . . . . . . . . . . . . . 2 . . . . . . . Blast 67 | . . . . . . . . 1 . . . . . . . 3 6 9 11 7 . . 7 . 2 2 7 3 2 . . 2 5 Melee Attacks . | . . . . . . . . . . . . . . . . . . . . . . . . . . . . . . . . . . Impact . | . . . . . . . . . . . . . . . . . . . . . . . . . . . . . . . . . . Slashing . | . . . . . . . . . . . . . . . . . . . . . . . . . . . . . . . . . . Piercing . | . . . . . . . . . . . . . . . . . . . . . . . . . . . . . . . . . . Sneak Attacks . | . . . . . . . . . . . . . . . . . . . . . . . . . . . . . . . . . . Combat Hostiles . | . . . . . . . . . . . . . . . . . . . . . . . . . . . . . . . . . . Follow-up Attacks . | . . . . . . . . . . . . . . . . . . . . . . . . . . . . . . . . . . Damage Inflicted 65616 | . 162 6 . . 2767 645 842 2143 219 3318 484 1735 1016 2249 64 2984 2292 3466 3296 2814 669 3122 2130 2316 1800 4738 3335 3638 2287 4228 . 3042 3809 Guns 5387 | . 162 . . . 2451 203 . . 30 314 . . . . . . . 28 . . . . . . . 1788 242 . . . . . 169 Cannons 33001 | . . . . . 80 438 842 951 189 1089 484 1271 27 937 64 2182 1505 3064 2816 1616 . 253 1424 922 1789 1397 2415 1551 710 1053 . 789 3143 Explosions 26833 | . . . . . 221 4 . 1159 . 1898 . 451 987 1302 . 801 760 312 383 1198 661 2869 689 1394 . 1551 663 2075 1569 3175 . 2241 470 Melee . | . . . . . . . . . . . . . . . . . . . . . . . . . . . . . . . . . . Ramming 395 | . . 6 . . 15 . . 33 . 17 . 13 2 10 . 1 27 62 97 . 8 . 17 . 11 2 15 12 8 . . 12 27 Kinetic 27115 | . 162 . . . 2506 516 611 683 119 570 50 . . . 64 2182 1505 3092 2816 1616 . 99 1191 126 613 1142 2202 909 276 133 . 789 3143 Thermal 12605 | . . . . . 25 125 231 268 100 679 434 1271 598 937 . . 676 . 124 . 75 154 273 796 1176 2043 455 642 434 920 . . 169 Explosive 25214 | . . . . . 221 4 . 1159 . 1797 . 451 416 1302 . 801 84 312 259 1198 586 2869 617 1394 . 1551 663 2075 1569 3175 . 2241 470 Electromagnetic 287 | . . . . . . . . . . 255 . . . . . . . . . . . . 32 . . . . . . . . . . Impact . | . . . . . . . . . . . . . . . . . . . . . . . . . . . . . . . . . . Slashing . | . . . . . . . . . . . . . . . . . . . . . . . . . . . . . . . . . . Piercing . | . . . . . . . . . . . . . . . . . . . . . . . . . . . . . . . . . . Highest Corruption 16 | . . . . . . . . 2 2 6 1 1 1 1 . . . . 5 3 5 5 5 5 7 15 7 7 8 15 . 1 16 Average Corruption 5 | . . . . . . . . 1 2 4 1 1 1 1 . . . . 3 1 5 5 4 5 5 14 3 7 7 14 . 1 5 Corruption Purged 5 | . . . . . . . . . . . . . . . . . . . 2 3 . . . . . . . . . . . . . Corruption Blocked . | . . . . . . . . . . . . . . . . . . . . . . . . . . . . . . . . . . Effects 494 | . . . . . . . . 23 2 51 7 6 2 13 . . . . 26 1 4 30 18 39 42 83 2 33 25 73 . 3 11 Message Errors 123 | . . . . . . . . 6 1 9 1 5 1 4 . . . . 7 . 2 12 3 10 10 19 . 9 2 15 . 1 6 Matter Fused 132 | . . . . . . . . 7 . 18 4 . . 5 . . . . 6 . 1 3 3 12 7 17 . 10 8 28 . 2 1 Heat Flow Errors 69 | . . . . . . . . 3 . 7 2 1 1 2 . . . . 2 . . 3 7 4 7 12 1 5 4 8 . . . Energy Discharges 52 | . . . . . . . . 4 . 6 . . . 2 . . . . 1 1 . 3 2 4 7 8 . 3 3 7 . . 1 Parts Rejected 6 | . . . . . . . . . . . . . . . . . . . . . . . . 1 1 3 . . 1 . . . . Parts Fused 2 | . . . . . . . . . . 2 . . . . . . . . . . . . . . . . . . . . . . . Data Loss (minor) 58 | . . . . . . . . 1 1 4 . . . . . . . . 5 . 1 3 1 5 5 13 . 3 5 10 . . 1 Data Loss (major) 17 | . . . . . . . . . . 2 . . . . . . . . 1 . . 4 . 1 1 4 . 1 . 3 . . . Misfires 20 | . . . . . . . . . . 1 . . . . . . . . 3 . . 2 2 . 3 6 . 1 2 . . . . Alerts 7 | . . . . . . . . 2 . 1 . . . . . . . . . . . . . 1 1 . . 1 . 1 . . . Misdirections 1 | . . . . . . . . . . . . . . . . . . . . . . . . . . . . . . . . . 1 Weapon Failures 7 | . . . . . . . . . . 1 . . . . . . . . 1 . . . . 1 . 1 1 . . 1 . . 1 Overload Shots . | . . . . . . . . . . . . . . . . . . . . . . . . . . . . . . . . . . Overflow Damage 2822 | . . . . . 48 4 . 64 . 126 68 21 175 82 . 16 266 277 122 20 11 130 107 49 77 64 110 224 92 264 . 102 303 Projectiles 1592 | . . . . . . 4 . 24 . 34 68 8 . 50 . 16 266 239 107 20 . . 94 49 77 32 110 15 43 30 . 3 303 Explosions 1214 | . . . . . 48 . . 40 . 92 . 13 175 32 . . . 37 . . 11 130 13 . . 32 . 209 49 234 . 99 . Melee 16 | . . . . . . . . . . . . . . . . . . 1 15 . . . . . . . . . . . . . . Knockbacks 165 | . . . . . . 3 4 11 1 4 . . . . 1 7 7 20 25 9 . 1 6 . 5 5 20 1 1 2 . 2 30 Impact 3 | . . . . . . . . 1 . . . . . . . . . . 1 . . . . . . . . . . . . . 1 Kinetic 148 | . . . . . . 3 4 8 1 4 . . . . 1 7 7 19 20 8 . 1 6 . 5 5 18 1 1 2 . 2 25 Secondary 14 | . . . . . . . . 2 . . . . . . . . . 1 4 1 . . . . . . 2 . . . . . 4 Self-Inflicted Damage 616 | . . . . . . . . 25 . 176 . . . 108 . 22 107 40 74 . . . . . . 51 . . . . . . 13 Shots 20 | . . . . . . . . 2 . 5 . . . 4 . 3 2 2 1 . . . . . . 1 . . . . . . . Rammed 46 | . . . . . 1 . . 3 . 4 . 1 1 2 . 1 3 8 5 . 1 . 2 . 3 1 2 1 1 . . 1 5 Targets Rammed 53 | . . 1 . . 1 . . 3 . 5 . 1 1 2 . 1 3 8 9 . 1 . 3 . 3 1 2 1 1 . . 1 5 Kicked 1 | . . 1 . . . . . . . . . . . . . . . . . . . . . . . . . . . . . . . Crushed 6 | . . . . . . . . . . 1 . . . . . . . . 4 . . . 1 . . . . . . . . . . Highest Temperature 858 | . . . . . 33 291 273 336 171 238 288 268 131 333 . 28 24 157 184 12 . 237 254 858 324 337 195 234 266 204 . 143 30 Average Temperature 81 | . . . . . 11 98 108 86 68 71 85 110 51 100 . 12 12 38 52 6 . 59 63 120 100 120 83 70 99 67 . 46 11 Received Heat Transfer 3696 | . . . . . 306 81 117 174 36 216 12 24 27 120 . 88 19 161 171 222 . 31 25 1043 57 334 103 69 52 80 . 74 54 Effects 10 | . . . . . . . . . . . . . . 1 . . . . . . . . . 9 . . . . . . . . . Shutdowns 1 | . . . . . . . . . . . . . . . . . . . . . . . . 1 . . . . . . . . . Energy Bleed 3 | . . . . . . . . . . . . . . 1 . . . . . . . . . 2 . . . . . . . . . Short Circuit 2 | . . . . . . . . . . . . . . . . . . . . . . . . 2 . . . . . . . . . Damage (minor) 3 | . . . . . . . . . . . . . . . . . . . . . . . . 3 . . . . . . . . . Damage (core) 1 | . . . . . . . . . . . . . . . . . . . . . . . . 1 . . . . . . . . . Siege Activations 23 | . . . . . . . . . . . . 1 . . . . . 3 1 . . . . . . 2 6 2 . 2 . 3 3 Total Turns 437 | . . . . . . . . . . . . 19 . . . . . 92 8 . . . . . . 63 86 6 . 41 . 13 109 Longest Duration 47 | . . . . . . . . . . . . 19 . . . . . 40 8 . . . . . . 47 23 5 . 30 . 6 47 Martial Activations . | . . . . . . . . . . . . . . . . . . . . . . . . . . . . . . . . . . Shielding Activations . | . . . . . . . . . . . . . . . . . . . . . . . . . . . . . . . . . . Robots Disrupted . | . . . . . . . . . . . . . . . . . . . . . . . . . . . . . . . . . . Combat Hostiles . | . . . . . . . . . . . . . . . . . . . . . . . . . . . . . . . . . . Robots Corrupted 4 | . . . . . . . . . . . . . . . . . . 2 1 . . . . . . . . . . . . . 1 Combat Hostiles 3 | . . . . . . . . . . . . . . . . . . 2 . . . . . . . . . . . . . . 1 Parts Fried 6 | . . . . . . . . 1 . . . . . . . . . 3 1 . . . . . . . . . . . . . 1 Impact Corruptions 7 | . . . . . . . . . . . . . . . . . . 3 1 . . . . . . . . . . . . . 3 Robots Melted 5 | . . . . . . . . . . . . 1 . 1 . . . . . . . . . . 3 . . . . . . . . Combat Hostiles 2 | . . . . . . . . . . . . . . . . . . . . . . . . . 2 . . . . . . . . Parts Melted 22 | . . . . . . . . . . 2 2 6 . 2 . . . . . . . . . . 4 2 . 1 . 3 . . . Heat Transferred 12580 | . . . . . 37 185 333 370 148 911 600 1931 387 1097 . . 425 . 100 . 50 . 50 . 1184 2590 481 536 371 703 . . 91 Parts Sabotaged 2 | . . . . . . . . . . . . . . . . . . . . . . . . . . . . . . . . 2 . Parts Stolen . | . . . . . . . . . . . . . . . . . . . . . . . . . . . . . . . . . . Parts Stripped . | . . . . . . . . . . . . . . . . . . . . . . . . . . . . . . . . . . Power Chain Reactions 3 | . . . . . . . . . . 2 . . . . . . . . . . . . 1 . . . . . . . . . . Alert | -11 -10 -10 -10 -9 -8 -8 -8 -8 -8 -8 -7 -7 -7 -7 -6 -6 -6 -6 -5 -5 -5 -5 -4 -4 -4 -4 -3 -3 -3 -3 -2 -2 -1 ------- Run | Yrd Mat Min Exi Min Mat Gar Mat Gar Mat Gar Fac Gar Fac Gar Fac Gar Fac Gar Fac Gar Fac Gar Fac Gar Fac Gar Res Gar Res Gar Res Gar Acc Maximum Alert Level 5 | . . . . . 1 2 1 4 2 4 3 3 3 5 3 4 3 4 3 5 5 5 4 4 3 4 4 5 5 5 5 5 5 Low Security (%) 5 | 100 100 100 . 100 84 . 4 9 . . 22 14 . . . . . . . . . . . . . . . . . . . . . Level 1 7 | . . . . . 15 62 95 14 19 10 39 43 . . . . 21 . . . . . . . . . . . . . . . . Level 2 17 | . . . . . . 37 . 18 80 27 34 35 86 26 . 13 23 25 46 . . . . . 70 6 52 . . . . . . Level 3 23 | . . . . . . . . 47 . 41 3 6 13 28 100 54 54 8 53 29 . . . 12 29 60 33 8 50 . . . . Level 4 24 | . . . . . . . . 11 . 19 . . . 40 . 32 . 66 . 29 74 16 100 87 . 33 13 9 38 8 75 3 . Level 5 19 | . . . . . . . . . . . . . . 4 . . . . . 40 25 83 . . . . . 81 11 91 24 96 28 High Security 2 | . . . . . . . . . . . . . . . . . . . . . . . . . . . . . . . . . 71 Max Security . | . . . . . . . . . . . . . . . . . . . . . . . . . . . . . . . . . . Peak Influence 4900 | . 20 . . . 361 417 274 1172 571 1359 713 816 725 1716 906 1331 889 1522 1093 2530 1639 2654 1501 1544 836 1474 1260 2474 1711 2738 1756 3081 4900 Initial 1848 | . . . . . . 229 202 162 571 299 713 60 428 467 900 543 698 541 798 736 1327 1123 1393 805 809 501 828 940 1391 1268 1539 1317 1848 Average 1172 | . 2 . . . 83 350 237 712 447 821 389 371 568 1076 846 966 636 1089 783 1506 1430 2252 1252 1254 659 995 773 1982 1185 2265 1556 2599 3119 Influence Increases 30938 | . 37 . . . 664 188 294 1040 100 1220 123 816 420 1269 16 968 1092 1231 992 1894 536 1741 803 1057 854 1193 1305 1594 1237 1640 611 1864 4139 Destroy 0b10 Robot/C 11510 | . 20 . . . 420 120 160 605 45 525 30 210 165 540 . 375 270 570 285 675 135 630 330 375 405 540 525 510 405 525 225 540 1350 Destroy 0b10 Robot/NC 533 | . 15 . . . 35 . 15 . 4 . 12 12 8 4 8 28 40 24 100 4 16 . 20 4 24 12 16 . 32 8 4 . 88 Destroy Leader 1428 | . 2 . . . 106 . 64 30 18 40 20 16 34 40 2 32 70 48 90 32 16 48 58 48 66 32 98 40 74 56 48 40 160 Allied During Kill 6950 | . . . . . . . . 41 12 13 . 18 47 300 6 155 197 182 22 533 167 540 101 146 203 73 530 523 482 325 277 580 1477 Successful Hack 149 | . . . . . 5 . 9 . 4 6 41 11 . 11 . . . . 11 . . . 6 11 . . . 22 . 12 . . . Select Force Hacks 23 | . . . . . . . . . . . . . 23 . . . . . . . . . . . . . . . . . . . . Disable Machine 1266 | . . . . . . . 15 15 12 36 12 12 96 . . 12 336 . 132 12 48 12 144 36 24 60 12 36 36 36 12 36 84 Anti-Garrison Action 4143 | . . . . . . . . 289 . 453 . 490 . 265 . 265 . 264 . 454 . 227 . 265 . 264 . 189 . 378 . 227 113 Destroy Structure 4369 | . . . . . 23 23 16 60 5 147 8 47 47 109 . 89 179 23 316 172 154 284 84 172 132 176 124 274 208 300 45 405 747 Partial Spotted 12 | . . . . . . . . . . . . . . . . . . . . . . . . . . . . . . . . . 12 Lose Combat Pursuer 555 | . . . . . 75 45 15 . . . . . . . . 12 . 120 36 12 . . 60 . . 36 . . . . . 36 108 Influence Decreases 26111 | . 37 . . . 311 124 461 118 811 322 1396 86 568 221 956 413 1649 483 1462 416 1461 692 2307 665 1679 436 1525 374 2020 593 1593 539 2393 Entered New Map 14983 | . . . . . . 124 215 88 601 162 646 26 388 201 816 233 633 233 724 316 1203 482 1261 345 733 216 646 314 1083 423 1199 439 1233 Time Decay 4988 | . 37 . . . 311 . 246 . 60 . 440 . 180 . 140 . 446 . 618 . 238 . 506 . 556 . 404 . 362 . 294 . 150 Lost Part 730 | . . . . . . . . 30 . 80 10 . . . . 20 . 80 40 20 . 10 30 60 60 120 10 . . 10 . . 150 Lost Ally 3610 | . . . . . . . . . . 80 . 60 . 20 . 160 20 170 80 80 20 200 360 260 330 100 190 60 200 160 100 100 860 Purge Threat 1800 | . . . . . . . . . 150 . 300 . . . . . 550 . . . . . 150 . . . 275 . 375 . . . . Squads Dispatched 95 | . 1 . . . 3 . 1 . 1 . 3 . 4 . . . 9 . 11 . . . 10 . 11 . 6 . 1 . 7 . 27 Investigation 10 | . . . . . . . 1 . . . . . 2 . . . . . 2 . . . . . 3 . 1 . . . 1 . . Extermination 16 | . . . . . . . . . . . 2 . 1 . . . 2 . 4 . . . 2 . 2 . 1 . 1 . 1 . . Reinforcement 25 | . 1 . . . . . . . . . 1 . 1 . . . 6 . 4 . . . 5 . 2 . 3 . . . 1 . 1 Assault 34 | . . . . . . . . . . . . . . . . . 1 . 1 . . . 2 . 4 . . . . . 1 . 25 Garrison 10 | . . . . . 3 . . . 1 . . . . . . . . . . . . . 1 . . . 1 . . . 3 . 1 Intercept . | . . . . . . . . . . . . . . . . . . . . . . . . . . . . . . . . . . Searches Triggered . | . . . . . . . . . . . . . . . . . . . . . . . . . . . . . . . . . . Construction Impeded 9 | . . . . . . . . . . . . . . . . . 1 . 3 . . . 2 . . . 1 . . . 1 . 1 Haulers Reinforced 3 | . . . . . . . . . . . . . . . . . 1 . 1 . . . . . . . 1 . . . . . . Active Scanning Responses . | . . . . . . . . . . . . . . . . . . . . . . . . . . . . . . . . . . Cargo Convoy Interrupts 1 | . . . . . . . . . . . . . . . . . 1 . . . . . . . . . . . . . . . . Stealth | -11 -10 -10 -10 -9 -8 -8 -8 -8 -8 -8 -7 -7 -7 -7 -6 -6 -6 -6 -5 -5 -5 -5 -4 -4 -4 -4 -3 -3 -3 -3 -2 -2 -1 --------- Run | Yrd Mat Min Exi Min Mat Gar Mat Gar Mat Gar Fac Gar Fac Gar Fac Gar Fac Gar Fac Gar Fac Gar Fac Gar Fac Gar Res Gar Res Gar Res Gar Acc Distress Signals 12 | . . . . . 1 . . . 1 . . . 1 . . . . . 1 . . . 2 . 2 . . . 1 2 . . 1 Communications Jammed 479 | . . . . . . . . . . . . . . . . . . . . . . . . . . . . . . . . . 479 Distress Signals 479 | . . . . . . . . . . . . . . . . . . . . . . . . . . . . . . . . . 479 Times Spotted 918 | . 3 . . . 30 6 11 27 5 35 6 15 13 45 2 30 17 40 31 52 6 34 49 33 56 44 43 32 35 43 23 35 117 Peak Tracking Total 17 | . 2 . . . 4 3 2 6 4 5 1 4 5 4 1 8 4 7 5 9 3 9 6 9 6 6 6 7 6 7 6 6 17 Tactical Retreats 30 | . . . . . 3 1 1 . . . . . . . . 1 . 5 3 1 . . 5 . . 3 . . . . . 3 4 Traps | -11 -10 -10 -10 -9 -8 -8 -8 -8 -8 -8 -7 -7 -7 -7 -6 -6 -6 -6 -5 -5 -5 -5 -4 -4 -4 -4 -3 -3 -3 -3 -2 -2 -1 ------- Run | Yrd Mat Min Exi Min Mat Gar Mat Gar Mat Gar Fac Gar Fac Gar Fac Gar Fac Gar Fac Gar Fac Gar Fac Gar Fac Gar Res Gar Res Gar Res Gar Acc Traps Triggered 31 | . 1 . . . . 1 1 1 . 1 1 1 1 3 . . 2 2 . 3 1 3 . 1 . 1 1 2 . 2 1 1 . Indirectly . | . . . . . . . . . . . . . . . . . . . . . . . . . . . . . . . . . . Trap Hack Attempts . | . . . . . . . . . . . . . . . . . . . . . . . . . . . . . . . . . . Triggered . | . . . . . . . . . . . . . . . . . . . . . . . . . . . . . . . . . . Disarmed . | . . . . . . . . . . . . . . . . . . . . . . . . . . . . . . . . . . Reprogrammed . | . . . . . . . . . . . . . . . . . . . . . . . . . . . . . . . . . . Reused . | . . . . . . . . . . . . . . . . . . . . . . . . . . . . . . . . . . Traps Extracted . | . . . . . . . . . . . . . . . . . . . . . . . . . . . . . . . . . . Installed . | . . . . . . . . . . . . . . . . . . . . . . . . . . . . . . . . . . Triggered . | . . . . . . . . . . . . . . . . . . . . . . . . . . . . . . . . . . Machines | -11 -10 -10 -10 -9 -8 -8 -8 -8 -8 -8 -7 -7 -7 -7 -6 -6 -6 -6 -5 -5 -5 -5 -4 -4 -4 -4 -3 -3 -3 -3 -2 -2 -1 ---------- Run | Yrd Mat Min Exi Min Mat Gar Mat Gar Mat Gar Fac Gar Fac Gar Fac Gar Fac Gar Fac Gar Fac Gar Fac Gar Fac Gar Res Gar Res Gar Res Gar Acc Machines Disabled 178 | . . . . . . . 1 5 1 10 1 6 8 6 . 5 28 5 11 11 4 4 12 9 2 11 1 6 3 12 1 7 8 Max in Single Turn 13 | . . . . . . . 1 1 1 2 1 1 6 1 . 1 13 1 4 3 2 1 6 1 . 1 1 1 1 1 . 1 2 Garrison Access 1 | . . . . . . . . . . . . . . . . . . . . . . . . . . . . . . . . . 1 Garrison Relay 63 | . . . . . . . . 4 . 5 . 5 . 5 . 5 . 3 . 9 . 3 . 5 . 3 . 3 . 9 . 4 . Phase Generator 1 | . . . . . . . . . . 1 . . . . . . . . . . . . . . . . . . . . . . . Machines Repaired . | . . . . . . . . . . . . . . . . . . . . . . . . . . . . . . . . . . Machines Dismantled . | . . . . . . . . . . . . . . . . . . . . . . . . . . . . . . . . . . Machines Sabotaged . | . . . . . . . . . . . . . . . . . . . . . . . . . . . . . . . . . . Overloaded Fab Kills . | . . . . . . . . . . . . . . . . . . . . . . . . . . . . . . . . . . Hacking | -11 -10 -10 -10 -9 -8 -8 -8 -8 -8 -8 -7 -7 -7 -7 -6 -6 -6 -6 -5 -5 -5 -5 -4 -4 -4 -4 -3 -3 -3 -3 -2 -2 -1 --------- Run | Yrd Mat Min Exi Min Mat Gar Mat Gar Mat Gar Fac Gar Fac Gar Fac Gar Fac Gar Fac Gar Fac Gar Fac Gar Fac Gar Res Gar Res Gar Res Gar Acc Machines Accessed 76 | . 2 1 2 . 2 1 3 4 2 4 7 2 1 2 1 2 3 3 5 3 1 1 3 2 3 1 3 2 2 3 3 1 1 Terminals 54 | . 1 . . . 1 1 2 4 1 4 5 2 . 2 . 2 2 3 4 3 . 1 2 2 . 1 1 2 1 3 2 1 1 Fabricators . | . . . . . . . . . . . . . . . . . . . . . . . . . . . . . . . . . . Repair Stations 3 | . . . . . . . . . . . 1 . . . . . . . . . . . . . 1 . 1 . . . . . . Recycling Units 2 | . 1 . . . . . . . . . . . . . . . . . . . . . . . 1 . . . . . . . . Scanalyzers . | . . . . . . . . . . . . . . . . . . . . . . . . . . . . . . . . . . Garrison Access 14 | . . . . . 1 . 1 . 1 . 1 . 1 . 1 . 1 . 1 . 1 . 1 . 1 . 1 . 1 . 1 . . Total Hacks 150 | . 5 1 5 . 4 1 7 7 7 8 13 2 2 4 2 3 6 5 12 7 1 3 7 3 5 2 6 3 2 8 5 3 1 Successful 50 | . 3 1 5 . 2 . 4 1 3 2 5 1 2 1 1 . 1 . 3 . 1 . 3 2 1 . 1 2 1 2 1 1 . Failed 100 | . 2 . . . 2 1 3 6 4 6 8 1 . 3 1 3 5 5 9 7 . 3 4 1 4 2 5 1 1 6 4 2 1 Catastrophic 30 | . 1 . . . . 1 2 3 . 1 4 . . 1 1 1 . 2 1 1 . 1 2 . 2 . 2 . 1 2 1 . . Database Lockouts . | . . . . . . . . . . . . . . . . . . . . . . . . . . . . . . . . . . Manual 46 | . 2 . 1 . 2 . 6 . 4 . 9 . 1 . 1 . 2 . 7 . . . 3 . 3 . 5 . . . . . . Terminals 116 | . 2 . . . 2 1 5 7 6 8 11 2 . 4 . 3 5 5 11 7 . 3 6 3 . 2 3 3 1 8 4 3 1 Fabricators . | . . . . . . . . . . . . . . . . . . . . . . . . . . . . . . . . . . Repair Stations 4 | . . . . . . . . . . . 1 . . . . . . . . . . . . . 1 . 2 . . . . . . Recycling Units 4 | . 3 . . . . . . . . . . . . . . . . . . . . . . . 1 . . . . . . . . Scanalyzers . | . . . . . . . . . . . . . . . . . . . . . . . . . . . . . . . . . . Garrison Access 20 | . . . . . 2 . 2 . 1 . 1 . 2 . 2 . 1 . 1 . 1 . 1 . 3 . 1 . 1 . 1 . . Terminal Hacks 24 | . . 1 5 . . . . 1 1 2 2 1 . 1 . . . . 1 . . . 2 2 . . . 2 . 2 . 1 . Record 4 | . . . 4 . . . . . . . . . . . . . . . . . . . . . . . . . . . . . . Open Door 2 | . . 1 . . . . . . . 1 . . . . . . . . . . . . . . . . . . . . . . . Branch Access Points 1 | . . . . . . . . . . . . . . . . . . . . . . . 1 . . . . . . . . . . Emergency Access Points 5 | . . . . . . . . . . 1 . . . . . . . . . . . . . 1 . . . 1 . 1 . 1 . Machine Index 1 | . . . . . . . . . . . 1 . . . . . . . . . . . . . . . . . . . . . . Unreport Threat 3 | . . . . . . . . . 1 . 1 . . . . . . . . . . . 1 . . . . . . . . . . Zone Layout 1 | . . . . . . . . . . . . . . . . . . . 1 . . . . . . . . . . . . . . Garrison Registry 2 | . . . . . . . . . . . . . . 1 . . . . . . . . . . . . . 1 . . . . . Patrol Navigation 3 | . . . . . . . . . . . . 1 . . . . . . . . . . . 1 . . . . . 1 . . . Security Stations 1 | . . . . . . . . 1 . . . . . . . . . . . . . . . . . . . . . . . . . Proto ID Catalog 1 | . . . 1 . . . . . . . . . . . . . . . . . . . . . . . . . . . . . . Fabricator Hacks . | . . . . . . . . . . . . . . . . . . . . . . . . . . . . . . . . . . Repair Station Hacks . | . . . . . . . . . . . . . . . . . . . . . . . . . . . . . . . . . . Recycling Unit Hacks 2 | . 2 . . . . . . . . . . . . . . . . . . . . . . . . . . . . . . . . Retrieve Matter 1 | . 1 . . . . . . . . . . . . . . . . . . . . . . . . . . . . . . . . Retrieve Components 1 | . 1 . . . . . . . . . . . . . . . . . . . . . . . . . . . . . . . . Scanalyzer . | . . . . . . . . . . . . . . . . . . . . . . . . . . . . . . . . . . Garrison Access Hacks 14 | . . . . . 1 . 1 . 1 . 1 . 1 . 1 . 1 . 1 . 1 . 1 . 1 . 1 . 1 . 1 . . Unlock Access 14 | . . . . . 1 . 1 . 1 . 1 . 1 . 1 . 1 . 1 . 1 . 1 . 1 . 1 . 1 . 1 . . Unauthorized Hacks 10 | . 1 . . . 1 . 3 . 1 . 2 . 1 . . . . . 1 . . . . . . . . . . . . . . Terminals 8 | . 1 . . . 1 . 2 . 1 . 2 . . . . . . . 1 . . . . . . . . . . . . . . Botnet 8 | . 1 . . . 1 . 2 . 1 . 2 . . . . . . . 1 . . . . . . . . . . . . . . Fabricators . | . . . . . . . . . . . . . . . . . . . . . . . . . . . . . . . . . . Repair Stations . | . . . . . . . . . . . . . . . . . . . . . . . . . . . . . . . . . . Recycling Units . | . . . . . . . . . . . . . . . . . . . . . . . . . . . . . . . . . . Scanalyzers . | . . . . . . . . . . . . . . . . . . . . . . . . . . . . . . . . . . Garrison Access 2 | . . . . . . . 1 . . . . . 1 . . . . . . . . . . . . . . . . . . . . Restock 1 | . . . . . . . 1 . . . . . . . . . . . . . . . . . . . . . . . . . . Eject 1 | . . . . . . . . . . . . . 1 . . . . . . . . . . . . . . . . . . . . Data Cores Recovered 5 | . 1 . . . . . 1 . . . 1 . . . . . 1 . . . 1 . . . . . . . . . . . . Used . | . . . . . . . . . . . . . . . . . . . . . . . . . . . . . . . . . . Hacking Detections 63 | . 1 . . . 1 1 3 3 2 3 5 2 1 2 1 2 2 3 4 3 1 1 3 2 3 1 2 2 1 3 3 1 1 Full Trace Events 5 | . . . . . . . . 1 . . . . . . . 1 . . 1 . . 1 . . 1 . . . . . . . . Feedback Events 1 | . . . . . . . . . . . . . . . . . . . . . . . . . 1 . . . . . . . . Corruption 1 | . . . . . . . . . . . . . . . . . . . . . . . . . 1 . . . . . . . . Feedback Blocked . | . . . . . . . . . . . . . . . . . . . . . . . . . . . . . . . . . . Robot Schematics Acquired . | . . . . . . . . . . . . . . . . . . . . . . . . . . . . . . . . . . Robots Built . | . . . . . . . . . . . . . . . . . . . . . . . . . . . . . . . . . . Authchips . | . . . . . . . . . . . . . . . . . . . . . . . . . . . . . . . . . . Time . | . . . . . . . . . . . . . . . . . . . . . . . . . . . . . . . . . . Total Robot Build Rating . | . . . . . . . . . . . . . . . . . . . . . . . . . . . . . . . . . . Part Schematics Acquired . | . . . . . . . . . . . . . . . . . . . . . . . . . . . . . . . . . . Parts Built . | . . . . . . . . . . . . . . . . . . . . . . . . . . . . . . . . . . Authchips . | . . . . . . . . . . . . . . . . . . . . . . . . . . . . . . . . . . Time . | . . . . . . . . . . . . . . . . . . . . . . . . . . . . . . . . . . Total Part Build Rating . | . . . . . . . . . . . . . . . . . . . . . . . . . . . . . . . . . . Parts Repaired . | . . . . . . . . . . . . . . . . . . . . . . . . . . . . . . . . . . Time . | . . . . . . . . . . . . . . . . . . . . . . . . . . . . . . . . . . Parts Recycled . | . . . . . . . . . . . . . . . . . . . . . . . . . . . . . . . . . . Recycled Matter . | . . . . . . . . . . . . . . . . . . . . . . . . . . . . . . . . . . Retrieved Matter . | . . . . . . . . . . . . . . . . . . . . . . . . . . . . . . . . . . Retrieved Components 1 | . 1 . . . . . . . . . . . . . . . . . . . . . . . . . . . . . . . . Parts Scanalyzed . | . . . . . . . . . . . . . . . . . . . . . . . . . . . . . . . . . . Part Schematics Acquired . | . . . . . . . . . . . . . . . . . . . . . . . . . . . . . . . . . . Parts Damaged . | . . . . . . . . . . . . . . . . . . . . . . . . . . . . . . . . . . Bothacking | -11 -10 -10 -10 -9 -8 -8 -8 -8 -8 -8 -7 -7 -7 -7 -6 -6 -6 -6 -5 -5 -5 -5 -4 -4 -4 -4 -3 -3 -3 -3 -2 -2 -1 ------------ Run | Yrd Mat Min Exi Min Mat Gar Mat Gar Mat Gar Fac Gar Fac Gar Fac Gar Fac Gar Fac Gar Fac Gar Fac Gar Fac Gar Res Gar Res Gar Res Gar Acc Used RIF Installer 16 | . . . . . . 1 . 1 . 1 . 2 . 1 . 1 . 1 . 1 . 2 . 1 . 1 . 1 . 1 . 1 . Coupler Efficiency 2 | . . . . . . . . . . . . 1 . . . . . . . . . . . . . . . . . 1 . . . Hotswap 1 | . . . . . . . . . . . . . . . . . . 1 . . . . . . . . . . . . . . . Code Merge 2 | . . . . . . . . . . . . 1 . . . . . . . . . . . . . . . 1 . . . . . Threat Obfuscator 1 | . . . . . . . . 1 . . . . . . . . . . . . . . . . . . . . . . . . . Signal Jammer 1 | . . . . . . . . . . . . . . . . . . . . . . . . . . . . . . . . 1 . Zone Cloak 1 | . . . . . . . . . . . . . . 1 . . . . . . . . . . . . . . . . . . . Robot Detection 1 | . . . . . . . . . . . . . . . . . . . . . . 1 . . . . . . . . . . . Watcher Feeds 1 | . . . . . . . . . . . . . . . . . . . . 1 . . . . . . . . . . . . . Patrol Navigation 1 | . . . . . . . . . . . . . . . . . . . . . . . . . . 1 . . . . . . . Structural Interface 1 | . . . . . . . . . . 1 . . . . . . . . . . . . . . . . . . . . . . . Program Shield 1 | . . . . . . . . . . . . . . . . . . . . . . . . 1 . . . . . . . . . Autooverride 1 | . . . . . . . . . . . . . . . . . . . . . . 1 . . . . . . . . . . . Autoassimilate 1 | . . . . . . . . . . . . . . . . 1 . . . . . . . . . . . . . . . . . Robots Hacked 284 | . . . . . . . . 1 . 5 2 2 2 9 . 12 5 4 12 16 5 11 19 21 20 11 15 13 14 18 14 19 34 Non-combat 35 | . . . . . . . . . . . 1 . 2 1 . . 4 . 5 . 2 1 2 . 2 1 4 . 4 . 2 . 4 Combat 249 | . . . . . . . . 1 . 5 1 2 . 8 . 12 1 4 7 16 3 10 17 21 18 10 11 13 10 18 12 19 30 Autooverrided 43 | . . . . . . . . . . . . . . . . . . . . . . . 8 5 3 2 2 3 2 2 3 3 10 Autoassimilated 40 | . . . . . . . . . . . . . . . . 2 . 1 1 5 . 3 1 2 1 2 3 2 2 4 1 1 9 Robot Hacks Applied 233 | . . . . . . . . 1 . 5 2 2 2 9 . 10 11 3 14 11 5 8 15 14 19 7 12 8 14 15 10 18 18 parse_system 14 | . . . . . . . . . . . . . . . . . 1 . 2 . . . 2 . . . . 1 2 2 . 3 1 start_evac 1 | . . . . . . . . . . . . . . . . . 1 . . . . . . . . . . . . . . . . drop_inventory 7 | . . . . . . . . . . . . . 2 . . . . . 1 . 1 . . . . . 1 . 1 . 1 . . ignore_parts 1 | . . . . . . . . . . . . . . . . . . . . . 1 . . . . . . . . . . . . purge_threat 12 | . . . . . . . . . . . 1 . . . . . 6 . . . . . . . . . 2 . 3 . . . . block_reporting 1 | . . . . . . . . . . . . . . . . . . . . . . . . . . . . . 1 . . . . map_route 5 | . . . . . . . . . . . . . . . . . 1 . 1 . . . 1 . 1 . 1 . . . . . . mark_security 1 | . . . . . . . . . . . . . . . . . . . . . . . . . . . . . . . . . 1 redirect_shields 1 | . . . . . . . . . . . . . . . . . . . . . . . . . . . . . . . . . 1 emergency_deploy 2 | . . . . . . . . . . . . . . . . . . . . . . . . . . 1 . . . . . . 1 find_garrison 4 | . . . . . . . . . . . . . . . . . . . 1 . . . 1 . . . 1 . 1 . . . . link_complan 2 | . . . . . . . . . . . . . . . . . . . 1 . . . . . . 1 . . . . . . . broadcast_data 1 | . . . . . . . . . . . . . . . . . . . . . . . . . 1 . . . . . . . . disrupt_area 5 | . . . . . . . . . . . . . . . . . . . . . . . . 1 1 . . . . 2 . 1 . spike_heat 7 | . . . . . . . . . . . . . . . . . . . . 1 1 . 1 . 2 . . . 1 . . 1 . amplify_resonance 10 | . . . . . . . . . . . . . . . . . . . 1 2 . 1 1 . 1 2 . . . 1 1 . . disable_weapons 3 | . . . . . . . . . . . . . . . . . . . 1 1 . . 1 . . . . . . . . . . reboot_system 9 | . . . . . . . . . . 3 . . . 1 . 1 . . 1 . . . . . 2 . . . . . 1 . . overwrite_iff 26 | . . . . . . . . . . 1 . . . 3 . . . 1 . 3 1 2 2 5 2 . 1 1 2 1 . 1 . formatsys_low 8 | . . . . . . . . . . . . . . . . . 1 . 2 . . . . . 1 . 1 . . . 1 . 2 formatsys_high 108 | . . . . . . . . 1 . 1 1 2 . 5 . 9 . 2 3 4 1 5 6 8 6 3 5 6 3 8 6 12 11 formatsys_deep 5 | . . . . . . . . . . . . . . . . . 1 . . . . . . . 2 . . . . 1 . . 1 Relay Couplers Released 267 | . . . . . . . 4 17 . 20 . 19 4 20 . 22 . 15 . 35 . 11 . 19 . 13 . 15 . 37 . 15 1 Ejected 4 | . . . . . . . . . . . . . 4 . . . . . . . . . . . . . . . . . . . . Machine Destruction 256 | . . . . . . . . 17 . 20 . 19 . 20 . 22 . 15 . 35 . 11 . 19 . 13 . 12 . 37 . 15 1 Programmers 7 | . . . . . . . 4 . . . . . . . . . . . . . . . . . . . . 3 . . . . . Attached 64 | . . . . . . . . 1 . 4 1 5 1 2 . 5 1 4 3 4 1 3 3 4 3 7 . 5 1 3 . 3 . Merged Code Value 1277 | . . . . . . . . . . . . 58 23 116 . 32 . 57 . 129 . 79 . 93 16 34 . 106 . 314 . 220 . Fabnet Peak Effective % . | . . . . . . . . . . . . . . . . . . . . . . . . . . . . . . . . . . Robots Rewired 24 | . . . . . . . . 2 . . . . . 2 . . . 2 . 5 . 4 . 2 . . . 2 . 5 . . . Allies Hacked 5 | . . . . . . . . . . . . . . . . . 1 . 2 . . . 1 . . . 1 . . . . . . Hacks Repelled . | . . . . . . . . . . . . . . . . . . . . . . . . . . . . . . . . . . Allies | -11 -10 -10 -10 -9 -8 -8 -8 -8 -8 -8 -7 -7 -7 -7 -6 -6 -6 -6 -5 -5 -5 -5 -4 -4 -4 -4 -3 -3 -3 -3 -2 -2 -1 -------- Run | Yrd Mat Min Exi Min Mat Gar Mat Gar Mat Gar Fac Gar Fac Gar Fac Gar Fac Gar Fac Gar Fac Gar Fac Gar Fac Gar Res Gar Res Gar Res Gar Acc Total Allies 272 | . . . . . . . . 3 . 3 1 4 . 12 . 11 4 6 6 19 2 14 16 22 20 10 12 14 9 22 11 17 34 Largest Group 21 | . . . . . . . . 3 2 2 1 3 2 10 8 8 8 5 2 10 10 12 8 7 8 5 11 16 17 17 21 21 21 Highest-Rated Group 1448 | . . . . . . . . 91 71 85 32 189 157 439 318 317 317 296 134 595 628 756 431 446 405 354 681 968 1021 1046 1271 1342 1448 Highest-Rated Ally 219 | . . . . . . . . 40 40 85 32 95 95 95 80 85 85 119 85 119 119 119 142 116 142 95 95 116 116 99 89 183 219 Total Orders 40 | . . . . . . . . 2 . . . 1 . . . 2 1 . 2 . . 2 4 2 1 2 4 4 4 . . 6 3 STAY 7 | . . . . . . . . 1 . . . . . . . . . . . . . . 1 1 . 1 . 1 1 . . 1 . ROAM 3 | . . . . . . . . . . . . . . . . 1 . . . . . 1 . . . . . . 1 . . . . FOLLOW 12 | . . . . . . . . 1 . . . . . . . 1 . . . . . 1 2 1 . 1 . 2 2 . . 1 . AID 15 | . . . . . . . . . . . . 1 . . . . 1 . 2 . . . 1 . 1 . 1 1 . . . 4 3 EXPLORE 3 | . . . . . . . . . . . . . . . . . . . . . . . . . . . 3 . . . . . . Ally Attacks 1938 | . . . . . . . . 24 13 23 . 19 20 58 2 84 81 55 30 110 30 92 78 88 155 32 100 88 80 112 75 98 391 Total Damage 78040 | . . . . . . . . 566 311 808 . 493 686 2775 37 2310 2507 2101 1058 3982 762 2910 3096 4206 4982 1163 3914 3092 2949 2995 3033 3603 23701 Kills 438 | . . . . . . . . 4 2 7 . 5 7 23 1 17 17 19 9 31 8 19 12 17 22 5 23 18 21 14 17 18 102 Allies Corrupted 22 | . . . . . . . . . . . . . . . . . . . . . . . 2 . . . 1 . 5 2 . . 12 Allies Melted 5 | . . . . . . . . . . . . . . 1 . . . . . . . . . 1 1 . . . . . 1 . 1 Intel | -11 -10 -10 -10 -9 -8 -8 -8 -8 -8 -8 -7 -7 -7 -7 -6 -6 -6 -6 -5 -5 -5 -5 -4 -4 -4 -4 -3 -3 -3 -3 -2 -2 -1 ------- Run | Yrd Mat Min Exi Min Mat Gar Mat Gar Mat Gar Fac Gar Fac Gar Fac Gar Fac Gar Fac Gar Fac Gar Fac Gar Fac Gar Res Gar Res Gar Res Gar Acc Active Infowar (turns) 535 | . . . . . 533 . . . . . . . . . . . . . . . . . . . . . . . . . . 2 . Optics 535 | . . . . . 533 . . . . . . . . . . . . . . . . . . . . . . . . . . 2 . Robot Analysis Total . | . . . . . . . . . . . . . . . . . . . . . . . . . . . . . . . . . . Derelict Logs Recovered 1 | . . 1 . . . . . . . . . . . . . . . . . . . . . . . . . . . . . . . Drone Launches 10 | . . . . . . . . . . . . . . . . . . . . . . . . . . . 10 . . . . . . Drone Recoveries 3 | . . . . . . . . . . . . . . . . . . . . . . . . . . . 3 . . . . . . Exploration | -11 -10 -10 -10 -9 -8 -8 -8 -8 -8 -8 -7 -7 -7 -7 -6 -6 -6 -6 -5 -5 -5 -5 -4 -4 -4 -4 -3 -3 -3 -3 -2 -2 -1 ------------- Run | Yrd Mat Min Exi Min Mat Gar Mat Gar Mat Gar Fac Gar Fac Gar Fac Gar Fac Gar Fac Gar Fac Gar Fac Gar Fac Gar Res Gar Res Gar Res Gar Acc Turns Passed 37358 | 52 244 119 763 8 1295 500 528 1775 129 2249 1093 1211 366 1418 291 1515 1113 1944 2072 1942 511 1312 1373 1546 1638 1974 974 1370 831 1824 647 1673 1058 Spaces Moved 18465 | 37 166 95 633 7 538 220 214 877 61 1007 470 621 177 736 177 761 559 847 1036 889 260 676 655 820 874 759 421 694 415 988 366 824 585 Core 158 | 9 . . . . . . . . . . . . . . . . . . . . . . . . . . . . . . . . 149 Treads 17368 | . . . . . 528 220 214 877 61 1007 470 621 177 736 177 761 559 847 1036 889 260 676 655 820 874 759 421 694 415 988 366 824 436 Legs 939 | 28 166 95 633 7 10 . . . . . . . . . . . . . . . . . . . . . . . . . . . . Wheels . | . . . . . . . . . . . . . . . . . . . . . . . . . . . . . . . . . . Hover . | . . . . . . . . . . . . . . . . . . . . . . . . . . . . . . . . . . Flight . | . . . . . . . . . . . . . . . . . . . . . . . . . . . . . . . . . . Fastest Speed 50 | 50 120 120 120 120 120 160 160 160 160 160 160 160 160 160 160 160 160 160 160 160 160 160 160 155 145 145 145 145 145 145 152 152 50 Average Speed 157 | 102 120 120 120 120 163 160 160 160 160 171 207 160 160 160 160 160 160 188 160 160 160 160 162 159 151 150 145 145 145 149 152 152 126 Slowest Speed 250 | 120 120 120 120 120 240 160 160 160 160 240 240 160 160 160 160 160 240 240 160 160 160 160 167 237 232 240 145 145 145 152 152 152 250 Overloaded Moves . | . . . . . . . . . . . . . . . . . . . . . . . . . . . . . . . . . . Propulsion Burnouts . | . . . . . . . . . . . . . . . . . . . . . . . . . . . . . . . . . . Robots Hopped . | . . . . . . . . . . . . . . . . . . . . . . . . . . . . . . . . . . Potential Cave-ins . | . . . . . . . . . . . . . . . . . . . . . . . . . . . . . . . . . . Cave-ins Triggered . | . . . . . . . . . . . . . . . . . . . . . . . . . . . . . . . . . . Exploration Rate (%) 47 | 3 24 29 90 8 53 36 14 81 9 99 16 92 8 84 6 93 22 79 30 86 14 69 26 94 22 70 23 91 20 93 19 94 14 Regions Visited 33 Branch Regions 3 Pre-discovered Areas 1 | . . . 1 . . . . . . . . . . . . . . . . . . . . . . . . . . . . . . Known Exits Taken 14 | . . . . . 1 . 1 . 1 . 1 . 1 . 1 . 1 . 1 . 1 . 1 . 1 . 1 . 1 . 1 . . Unknown Exits Taken 5 | 1 1 1 1 1 . . . . . . . . . . . . . . . . . . . . . . . . . . . . . Scrap Searched . | . . . . . . . . . . . . . . . . . . . . . . . . . . . . . . . . . . Spaces Dug 151 | . . . . . 10 11 . 23 . 6 3 . . 21 . 1 22 1 8 1 . . 5 . . 4 10 1 8 1 . 1 14 Terrain Destroyed 1952 | . . . . . 23 16 13 37 3 235 8 51 50 91 . 25 127 13 104 74 53 104 38 64 24 92 64 159 87 174 . 185 38 Melee . | . . . . . . . . . . . . . . . . . . . . . . . . . . . . . . . . . . Projectile 288 | . . . . . 1 . 13 . 3 1 8 . . . . 6 14 9 49 16 . 7 21 5 24 20 25 6 12 5 . 9 34 AOE 1664 | . . . . . 22 16 . 37 . 234 . 51 50 91 . 19 113 4 55 58 53 97 17 59 . 72 39 153 75 169 . 176 4 Terrain Rammed . | . . . . . . . . . . . . . . . . . . . . . . . . . . . . . . . . . . Walls Destroyed . | . . . . . . . . . . . . . . . . . . . . . . . . . . . . . . . . . . Machines Disabled . | . . . . . . . . . . . . . . . . . . . . . . . . . . . . . . . . . . Actions | -11 -10 -10 -10 -9 -8 -8 -8 -8 -8 -8 -7 -7 -7 -7 -6 -6 -6 -6 -5 -5 -5 -5 -4 -4 -4 -4 -3 -3 -3 -3 -2 -2 -1 --------- Run | Yrd Mat Min Exi Min Mat Gar Mat Gar Mat Gar Fac Gar Fac Gar Fac Gar Fac Gar Fac Gar Fac Gar Fac Gar Fac Gar Res Gar Res Gar Res Gar Acc Total 24877 | 49 200 101 636 6 793 327 349 1164 76 1407 565 766 251 894 184 982 710 1093 1317 1329 350 865 894 988 1105 1472 682 999 608 1271 456 1195 793 Wait 3743 | . 16 4 . . 128 80 89 174 8 278 54 57 55 67 2 106 86 143 164 307 65 118 143 57 107 485 160 186 100 99 63 271 71 Move 18437 | 36 165 94 632 6 538 219 213 876 60 1006 469 620 176 735 176 760 559 846 1036 888 259 675 654 819 874 758 421 693 415 987 365 823 584 Hop . | . . . . . . . . . . . . . . . . . . . . . . . . . . . . . . . . . . Pick Up 208 | 8 6 1 1 . 10 . 7 10 . 8 6 7 2 3 1 14 . 9 9 12 6 4 8 9 9 23 . 10 3 11 2 9 . Fast Attach 130 | 4 . . 1 . 7 . . 2 . 5 3 6 . 2 2 3 4 4 2 2 . 3 1 9 10 23 9 6 8 5 3 6 . Attach 130 | 1 1 . . . 2 . . 3 . 5 2 1 1 2 . 3 . 6 7 2 . 2 7 6 4 27 1 10 8 7 1 9 12 Detach 47 | . . . . . 2 . . . . . . 1 . 1 1 . . 1 . . . . . . 1 16 1 8 6 3 . . 6 Swap 193 | . 2 . 1 . 17 6 3 12 . 15 5 9 5 8 . 5 4 5 3 12 2 9 7 1 6 13 6 8 3 22 3 1 . Drop 260 | . 4 1 1 . 15 1 11 11 . 7 9 15 3 5 1 12 1 3 4 16 5 6 7 8 7 33 7 16 12 15 4 13 7 Fire 1580 | . 6 . . . 73 21 26 54 8 76 17 48 8 64 1 76 52 67 82 73 12 45 64 79 80 93 71 59 51 94 14 60 106 Melee . | . . . . . . . . . . . . . . . . . . . . . . . . . . . . . . . . . . Ram 5 | . . . . . . . . . . . . . . . . . . . . . . . . . . . . . . . . . 5 Kick 1 | . . 1 . . . . . . . . . . . . . . . . . . . . . . . . . . . . . . . Crush 47 | . . . . . 1 . . 3 . 5 . 1 1 2 . 1 3 8 9 . 1 . 3 . 3 1 2 1 1 . . 1 . Escape Stasis 6 | . . . . . . . . . . . . 1 . . . . . . . 1 . . . . . . . . . 4 . . . Rewire 87 | . . . . . . . . 19 . 2 . . . 5 . 2 1 1 1 16 . 3 . . 4 . 1 2 1 24 1 2 2 Trap . | . . . . . . . . . . . . . . . . . . . . . . . . . . . . . . . . . . Miscellaneous 3 | . . . . . . . . . . . . . . . . . . . . . . . . . . . 3 . . . . . . Route ------- -11/Scrapyard -10/Materials -10/Mines -10/Exiles -9/Mines -8/Materials (discovered 3 exits: *Fac x2 / Gar) -8/Garrison -8/Materials -8/Garrison (discovered 4 exits: *Fac x3 / *Mat) -8/Materials -8/Garrison (discovered 3 exits: *Fac x3) -7/Factory -7/Garrison (discovered 3 exits: *Fac x3) -7/Factory -7/Garrison (discovered 3 exits: *Fac x3) -6/Factory -6/Garrison (discovered 3 exits: *Fac x3) -6/Factory (discovered 4 exits: *Fac x2 / [*Low] / Gar) -6/Garrison (discovered 3 exits: *Fac x3) -5/Factory -5/Garrison (discovered 3 exits: *Fac x3) -5/Factory (discovered 3 exits: *Fac / [*Upp] / Gar) -5/Garrison (discovered 2 exits: *Fac x2) -4/Factory (discovered 6 exits: *Res / *Upp x2 / Ext x2 / Gar) -4/Garrison (discovered 3 exits: *Fac x3) -4/Factory (discovered 5 exits: *Res x2 / *Upp / *Ext / Gar) -4/Garrison (discovered 2 exits: *Res x2) -3/Research (discovered 3 exits: *Res / [Tes] / Gar) -3/Garrison (discovered 4 exits: *Res x4) -3/Research (discovered 2 exits: *Res / Gar) -3/Garrison (discovered 3 exits: *Res x3) -2/Research -2/Garrison (discovered 3 exits: *Acc x3) -1/Access To Epsilon Eridani History --------- Turn | Location | Event 20 | -11/Scrapyard | Discovered new exit (range 16) 53 | -11/Scrapyard | Entered Materials 223 | -10/Materials | Discovered new exit (range 11) 297 | -10/Materials | Entered Mines 303 | -10/Mines | Learned Materials stockpile data 312 | -10/Mines | Build established: Mutant 352 | -10/Mines | Met a Derelict who couldn't figure out how to use a Trap Extractor 411 | -10/Mines | Deemed a non-threat by the Exiles lab entrance 411 | -10/Mines | Discovered new exit (range 5) 416 | -10/Mines | Entered Exiles 445 | -10/Exiles | Met 8R-AWN 464 | -10/Exiles | Met EX-HEX 503 | -10/Exiles | Met EX-BIN 565 | -10/Exiles | Aligned with FarCom system 566 | -10/Exiles | Given EX-Vault access code 594 | -10/Exiles | Opened EX-Vault 628 | -10/Exiles | Warned to stay clear of 0b10 Research branches 659 | -10/Exiles | Met EX-DEC 838 | -10/Exiles | Found AWS/Thermal 933 | -10/Exiles | Visited The Gauntlet 1131 | -10/Exiles | Learned location of Zion (-6) 1164 | -10/Exiles | Discovered new exit (range 14) 1179 | -10/Exiles | Left Exiles lab with AWS/Thermal 1179 | -10/Exiles | Entered Mines 1179 | -9/Mines | Discovered new exit (range 7) 1187 | -9/Mines | Entered Materials 1187 | -8/Materials | Evolved 4 slots: Propulsion x1, Utility x2, Weapon x1 1538 | -8/Materials | Build established: Skirmisher 2127 | -8/Materials | Discovered new exit (range 11) 2157 | -8/Materials | Build established: Tank 2224 | -8/Materials | Garrison activated, responded to threat 2470 | -8/Materials | Discovered new exit (range 13) 2482 | -8/Materials | Identified exit to Garrison 2482 | -8/Materials | Entered Garrison 2524 | -8/Garrison | Installed Relay Interface Framework 2712 | -8/Garrison | Triggered checkpoint 2762 | -8/Garrison | Build established: Scavenger-Tank 2925 | -8/Garrison | Discovered new exit (range 12) 2982 | -8/Garrison | Entered Materials 3368 | -8/Materials | Identified exit to Garrison 3510 | -8/Materials | Entered Garrison 3656 | -8/Garrison | Triggered checkpoint 3753 | -8/Garrison | Learned Factory security intel 3770 | -8/Garrison | Garrison Relay disabled 3804 | -8/Garrison | Build established: Bothacker-Tank 3881 | -8/Garrison | Triggered checkpoint 4086 | -8/Garrison | Triggered checkpoint 4112 | -8/Garrison | Garrison Relay disabled 4142 | -8/Garrison | Discovered new exit (range 14) 4243 | -8/Garrison | Triggered checkpoint 4292 | -8/Garrison | Build established: Bothacker-Skirmisher 4327 | -8/Garrison | Discovered new exit (range 14) 4362 | -8/Garrison | Expanded RIF knowledge: Threat Obfuscation 4784 | -8/Garrison | Triggered checkpoint 4817 | -8/Garrison | Garrison Relay disabled 5024 | -8/Garrison | Discovered new exit (range 13) 5054 | -8/Garrison | Triggered checkpoint 5083 | -8/Garrison | Discovered new exit (range 6) 5150 | -8/Garrison | Triggered checkpoint 5207 | -8/Garrison | Garrison Relay disabled 5285 | -8/Garrison | Entered Materials 5285 | -8/Materials | Accompanied by 2 allies 5348 | -8/Materials | Identified exit to Garrison 5367 | -8/Materials | Garrison activated, responded to threat 5414 | -8/Materials | Entered Garrison 5414 | -8/Garrison | Accompanied by 2 allies 5442 | -8/Garrison | Triggered checkpoint 5503 | -8/Garrison | P-60 Hacker assimilated allied YG-KGW(g) 5573 | -8/Garrison | Lost 4 parts (1n1u2w) 5657 | -8/Garrison | Garrison Relay disabled 5705 | -8/Garrison | Garrison Relay disabled 5795 | -8/Garrison | Phase Generator disabled 6135 | -8/Garrison | Triggered checkpoint 6196 | -8/Garrison | Triggered checkpoint 6359 | -8/Garrison | Rescued a captive Derelict 6412 | -8/Garrison | Triggered checkpoint 6439 | -8/Garrison | Discovered new exit (range 10) 6498 | -8/Garrison | Spotted B-75 Beast 6498 | -8/Garrison | Spotted B-75 Beast 6520 | -8/Garrison | Core integrity fell below 50% 6522 | -8/Garrison | Destroyed B-75 Beast 6615 | -8/Garrison | Triggered checkpoint 6782 | -8/Garrison | Discovered new exit (range 12) 6863 | -8/Garrison | Triggered checkpoint 7081 | -8/Garrison | Triggered checkpoint 7136 | -8/Garrison | Garrison Relay disabled 7302 | -8/Garrison | Triggered checkpoint 7309 | -8/Garrison | Discovered new exit (range 15) 7343 | -8/Garrison | Expanded RIF knowledge: Structural Interface 7663 | -8/Garrison | Entered Factory 7663 | -7/Factory | Evolved 2 slots: Utility x2 8723 | -7/Factory | Identified exit to Garrison 8756 | -7/Factory | Entered Garrison 8756 | -7/Garrison | Accompanied by 1 ally 8850 | -7/Garrison | Warlord forces raided the area 8972 | -7/Garrison | Expanded RIF knowledge: Coupler Efficiency 9002 | -7/Garrison | Triggered checkpoint 9028 | -7/Garrison | Triggered checkpoint 9133 | -7/Garrison | Discovered new exit (range 2) 9168 | -7/Garrison | Garrison Relay disabled 9256 | -7/Garrison | Triggered checkpoint 9261 | -7/Garrison | Build established: Botlord-Tank 9284 | -7/Garrison | Triggered checkpoint 9304 | -7/Garrison | Triggered checkpoint 9389 | -7/Garrison | Discovered new exit (range 15) 9488 | -7/Garrison | Expanded RIF knowledge: Code Merge 9571 | -7/Garrison | Garrison Relay disabled 9573 | -7/Garrison | Garrison Relay disabled 9660 | -7/Garrison | Found embedded Infiltrators 9717 | -7/Garrison | Garrison Relay disabled 9863 | -7/Garrison | Discovered new exit (range 10) 9872 | -7/Garrison | Triggered checkpoint 9906 | -7/Garrison | Garrison Relay disabled 9967 | -7/Garrison | Entered Factory 9967 | -7/Factory | Accompanied by 2 allies 10303 | -7/Factory | Identified exit to Garrison 10333 | -7/Factory | Entered Garrison 10333 | -7/Garrison | Accompanied by 2 allies 10350 | -7/Garrison | Garrison Relay disabled 10518 | -7/Garrison | Garrison Relay disabled 10675 | -7/Garrison | Triggered checkpoint 10699 | -7/Garrison | Triggered checkpoint 10723 | -7/Garrison | Triggered checkpoint 10757 | -7/Garrison | Triggered checkpoint 10812 | -7/Garrison | Expanded RIF knowledge: Zone Cloak 10894 | -7/Garrison | Discovered new exit (range 5) 10933 | -7/Garrison | Triggered checkpoint 10986 | -7/Garrison | Found embedded Infiltrators 11023 | -7/Garrison | Garrison Relay disabled 11151 | -7/Garrison | Garrison Relay disabled 11217 | -7/Garrison | Discovered new exit (range 15) 11231 | -7/Garrison | Triggered checkpoint 11567 | -7/Garrison | Triggered checkpoint 11583 | -7/Garrison | Garrison Relay disabled 11612 | -7/Garrison | Discovered new exit (range 9) 11612 | -7/Garrison | Discovered new exit (range 42) 11612 | -7/Garrison | Discovered new exit (range 68) 11751 | -7/Garrison | Entered Factory 11751 | -6/Factory | Accompanied by 8 allies 11751 | -6/Factory | Evolved 2 slots: Utility x2 12030 | -6/Factory | Identified exit to Garrison 12042 | -6/Factory | Entered Garrison 12042 | -6/Garrison | Accompanied by 6 allies 12094 | -6/Garrison | Expanded RIF knowledge: Autoassimilate 12170 | -6/Garrison | Spotted B-75 Beast 12173 | -6/Garrison | Assimilated Beast 5a with formatsys_high 12210 | -6/Garrison | Lost 6 allies 12242 | -6/Garrison | Triggered checkpoint 12248 | -6/Garrison | Triggered checkpoint 12276 | -6/Garrison | Triggered checkpoint 12345 | -6/Garrison | Garrison Relay disabled 12359 | -6/Garrison | Triggered checkpoint 12466 | -6/Garrison | Garrison Relay disabled 12468 | -6/Garrison | Garrison Relay disabled 12545 | -6/Garrison | Discovered new exit (range 12) 12774 | -6/Garrison | Discovered new exit (range 14) 12928 | -6/Garrison | Triggered checkpoint 12968 | -6/Garrison | Garrison Relay disabled 12996 | -6/Garrison | Triggered checkpoint 13323 | -6/Garrison | Discovered new exit (range 3) 13456 | -6/Garrison | Triggered checkpoint 13475 | -6/Garrison | Garrison Relay disabled 13557 | -6/Garrison | Entered Factory 13557 | -6/Factory | Accompanied by 8 allies 13755 | -6/Factory | Discovered new exit (range 10) 14161 | -6/Factory | Discovered new exit (range 16) 14257 | -6/Factory | First assault squad dispatched 14376 | -6/Factory | Assimilated ARC 5a with formatsys_deep 14399 | -6/Factory | Discovered new exit (range 3) 14667 | -6/Factory | Cargo convoy interrupted 14669 | -6/Factory | Identified exit to Garrison 14670 | -6/Factory | Garrison activated, responded to threat 14670 | -6/Factory | Entered Garrison 14670 | -6/Garrison | Accompanied by 5 allies 14818 | -6/Garrison | Triggered checkpoint 14837 | -6/Garrison | Garrison Relay disabled 14960 | -6/Garrison | Spotted Striker 14962 | -6/Garrison | Spotted Striker 15206 | -6/Garrison | Destroyed Striker 15218 | -6/Garrison | Destroyed Striker 15219 | -6/Garrison | Core integrity fell below 50% 15224 | -6/Garrison | Rewired Executioner 15233 | -6/Garrison | Rewired Executioner 15235 | -6/Garrison | Lost 6 parts (2n2u2w) 15242 | -6/Garrison | Lost 5 allies 15268 | -6/Garrison | Triggered checkpoint 15332 | -6/Garrison | Lost 4 allies 15338 | -6/Garrison | Triggered checkpoint 15434 | -6/Garrison | Triggered checkpoint 15580 | -6/Garrison | Discovered new exit (range 14) 15615 | -6/Garrison | Expanded RIF knowledge: Hotswap 16064 | -6/Garrison | Garrison Relay disabled 16098 | -6/Garrison | Triggered checkpoint 16372 | -6/Garrison | Discovered new exit (range 13) 16454 | -6/Garrison | Garrison Relay disabled 16555 | -6/Garrison | Discovered new exit (range 13) 16614 | -6/Garrison | Entered Factory 16614 | -5/Factory | Evolved 2 slots: Propulsion x1, Utility x1 17796 | -5/Factory | Spotted B-75 Beast 17803 | -5/Factory | Assimilated Beast 6a with formatsys_high 18414 | -5/Factory | First assault squad dispatched 18686 | -5/Factory | Identified exit to Garrison 18686 | -5/Factory | Entered Garrison 18842 | -5/Garrison | Triggered checkpoint 18881 | -5/Garrison | Garrison Relay disabled 19042 | -5/Garrison | Triggered checkpoint 19126 | -5/Garrison | Triggered checkpoint 19152 | -5/Garrison | Discovered new exit (range 10) 19238 | -5/Garrison | Triggered checkpoint 19274 | -5/Garrison | Triggered checkpoint 19320 | -5/Garrison | Found embedded Infiltrators 19452 | -5/Garrison | Discovered new exit (range 14) 19578 | -5/Garrison | Triggered checkpoint 19602 | -5/Garrison | Garrison Relay disabled 19727 | -5/Garrison | Spotted Striker 19732 | -5/Garrison | Rewired Executioner 19747 | -5/Garrison | Destroyed Striker 19775 | -5/Garrison | Lost 3 allies 19832 | -5/Garrison | Triggered checkpoint 19854 | -5/Garrison | Discovered new exit (range 12) 19880 | -5/Garrison | Triggered checkpoint 19933 | -5/Garrison | Heavy support dispatched to Factory 19935 | -5/Garrison | Garrison Relay disabled 20027 | -5/Garrison | Triggered checkpoint 20076 | -5/Garrison | Garrison Relay disabled 20350 | -5/Garrison | Garrison Relay disabled 20371 | -5/Garrison | Expanded RIF knowledge: Watcher Feeds 20628 | -5/Garrison | Entered Factory 20628 | -5/Factory | Accompanied by 10 allies 20815 | -5/Factory | Found Mni. Smartbomb Launcher 20818 | -5/Factory | Found Faulty Mni. Smartbomb Launcher 20829 | -5/Factory | Found Mni. Smartbomb Launcher 20864 | -5/Factory | Discovered new exit (range 14) 21019 | -5/Factory | Spotted B-75 Beast 21021 | -5/Factory | Assimilated Beast 6b with formatsys_high 21030 | -5/Factory | Discovered new exit (range 14) 21079 | -5/Factory | Identified exit to Garrison 21139 | -5/Factory | Entered Garrison 21139 | -5/Garrison | Accompanied by 10 allies 21155 | -5/Garrison | Spotted Executioner 21162 | -5/Garrison | Rewired Striker 21170 | -5/Garrison | Allies destroyed Executioner 21347 | -5/Garrison | Triggered checkpoint 21358 | -5/Garrison | Allies destroyed Striker 21362 | -5/Garrison | Triggered checkpoint 21366 | -5/Garrison | Spotted B-75 Beast 21367 | -5/Garrison | Destroyed B-75 Beast 21392 | -5/Garrison | Lost 7 allies 21411 | -5/Garrison | Triggered checkpoint 21434 | -5/Garrison | Destroyed 22 combat bots 21495 | -5/Garrison | Triggered checkpoint 21519 | -5/Garrison | Expanded RIF knowledge: Robot Detection 21583 | -5/Garrison | Lost 3 allies 21602 | -5/Garrison | Garrison Relay disabled 21752 | -5/Garrison | Discovered new exit (range 10) 21909 | -5/Garrison | Discovered new exit (range 12) 21914 | -5/Garrison | Triggered checkpoint 21949 | -5/Garrison | Triggered checkpoint 21959 | -5/Garrison | Garrison Relay disabled 22000 | -5/Garrison | Expanded RIF knowledge: Autooverride 22283 | -5/Garrison | Triggered checkpoint 22293 | -5/Garrison | Garrison Relay disabled 22451 | -5/Garrison | Entered Factory 22451 | -4/Factory | Accompanied by 8 allies 22451 | -4/Factory | Evolved 2 slots: Utility x2 22491 | -4/Factory | Discovered new exit (range 27) 22558 | -4/Factory | P-70 Sage assimilated allied Sentinel 6f 22632 | -4/Factory | Lost 6 allies 22701 | -4/Factory | First assault squad dispatched 22820 | -4/Factory | Spotted B-86 Titan 23034 | -4/Factory | Identified exit to Upper Caves 23034 | -4/Factory | Identified exit to Extension 23254 | -4/Factory | Lost 4 allies 23260 | -4/Factory | P-70 Sage assimilated allied H-77 Assassin 23276 | -4/Factory | Lost 3 parts (1p1n1u) 23534 | -4/Factory | Build established: Botlord-Skirmisher 23791 | -4/Factory | Garrison activated, responded to threat 23816 | -4/Factory | Identified exit to Garrison 23824 | -4/Factory | Entered Garrison 23824 | -4/Garrison | Accompanied by 1 ally 23826 | -4/Garrison | Lost 5 allies 23897 | -4/Garrison | Spotted B-86 Titan 23906 | -4/Garrison | Triggered checkpoint 23909 | -4/Garrison | Triggered checkpoint 23912 | -4/Garrison | Triggered checkpoint 23918 | -4/Garrison | Destroyed B-86 Titan 23963 | -4/Garrison | Lost 7 allies 23974 | -4/Garrison | Lost 3 parts (2n1w) 24058 | -4/Garrison | Spotted B-90 Cyclops 24074 | -4/Garrison | Discovered new exit (range 9) 24125 | -4/Garrison | Expanded RIF knowledge: Program Shield 24172 | -4/Garrison | Triggered checkpoint 24182 | -4/Garrison | Garrison Relay disabled 24352 | -4/Garrison | Discovered new exit (range 10) 24412 | -4/Garrison | Triggered checkpoint 24444 | -4/Garrison | Garrison Relay disabled 24598 | -4/Garrison | Triggered checkpoint 24678 | -4/Garrison | Garrison Relay disabled 24718 | -4/Garrison | Triggered checkpoint 24722 | -4/Garrison | Discovered new exit (range 14) 24759 | -4/Garrison | Lost 3 allies 24812 | -4/Garrison | Triggered checkpoint 24833 | -4/Garrison | Garrison Relay disabled 25010 | -4/Garrison | Triggered checkpoint 25030 | -4/Garrison | Garrison Relay disabled 25215 | -4/Garrison | Rewired B-75 Beast 25229 | -4/Garrison | Rewired B-86 Titan 25246 | -4/Garrison | Allies destroyed B-90 Cyclops 25370 | -4/Garrison | Entered Factory 25370 | -4/Factory | Accompanied by 6 allies 25464 | -4/Factory | Discovered new exit (range 16) 25555 | -4/Factory | Build established: Botlord-Mutant 25605 | -4/Factory | Discovered exit to Upper Caves (range 89) 25620 | -4/Factory | First assault squad dispatched 25712 | -4/Factory | Lost 3 allies 25809 | -4/Factory | Assimilated ARC 7a with formatsys_deep 25933 | -4/Factory | Assimilated ARC 7b with formatsys_deep 26084 | -4/Factory | Discovered exit to Extension (range 16) 26157 | -4/Factory | Build established: Botlord-Tank 26472 | -4/Factory | Discovered new exit (range 5) 26474 | -4/Factory | Lost 5 allies 26715 | -4/Factory | Core integrity fell below 50% 26740 | -4/Factory | Lost 4 allies 27008 | -4/Factory | Identified exit to Garrison 27008 | -4/Factory | Entered Garrison 27008 | -4/Garrison | Accompanied by 1 ally 27128 | -4/Garrison | System corruption reached 10% 27175 | -4/Garrison | Found Relay Coupler [Proto] 27179 | -4/Garrison | Found Relay Coupler [Proto] 27182 | -4/Garrison | Found Relay Coupler [Proto] 27184 | -4/Garrison | Found Relay Coupler [Proto] 27332 | -4/Garrison | Expanded RIF knowledge: Patrol Navigation 27378 | -4/Garrison | Garrison Relay disabled 27950 | -4/Garrison | Triggered checkpoint 27955 | -4/Garrison | Triggered checkpoint 28000 | -4/Garrison | Lost 4 parts (2n1u1w) 28277 | -4/Garrison | Discovered new exit (range 12) 28627 | -4/Garrison | Triggered checkpoint 28656 | -4/Garrison | Found embedded Infiltrators 28665 | -4/Garrison | Garrison Relay disabled 28695 | -4/Garrison | Rescued a captive Derelict 28827 | -4/Garrison | Discovered new exit (range 10) 28866 | -4/Garrison | Triggered checkpoint 28912 | -4/Garrison | Garrison Relay disabled 28982 | -4/Garrison | Entered Research 28982 | -3/Research | Accompanied by 5 allies 28982 | -3/Research | Evolved 2 slots: Utility x2 29275 | -3/Research | Lost 4 allies 29341 | -3/Research | Discovered new exit (range 118) 29819 | -3/Research | Lost 3 allies 29869 | -3/Research | Discovered new exit (range 7) 29920 | -3/Research | Garrison activated, responded to threat 29952 | -3/Research | Identified exit to Garrison 29956 | -3/Research | Entered Garrison 29956 | -3/Garrison | Accompanied by 8 allies 29971 | -3/Garrison | Expanded RIF knowledge: Code Merge 30044 | -3/Garrison | Triggered checkpoint 30114 | -3/Garrison | Triggered checkpoint 30117 | -3/Garrison | Spotted B-86 Titan 30119 | -3/Garrison | Assimilated Titan 8a with formatsys_high 30172 | -3/Garrison | Triggered checkpoint 30206 | -3/Garrison | Triggered checkpoint 30283 | -3/Garrison | Discovered new exit (range 7) 30308 | -3/Garrison | Triggered checkpoint 30367 | -3/Garrison | Garrison Relay disabled 30426 | -3/Garrison | Found Fusion Bomb Launcher 30501 | -3/Garrison | Garrison Relay disabled 30510 | -3/Garrison | Triggered checkpoint 30583 | -3/Garrison | Discovered new exit (range 13) 30754 | -3/Garrison | Triggered checkpoint 30800 | -3/Garrison | Spotted B-86 Titan 30812 | -3/Garrison | Allies destroyed B-86 Titan 30889 | -3/Garrison | Discovered new exit (range 14) 31046 | -3/Garrison | Triggered checkpoint 31064 | -3/Garrison | Garrison Relay disabled 31145 | -3/Garrison | Discovered new exit (range 79) 31145 | -3/Garrison | Discovered new exit (range 38) 31145 | -3/Garrison | Discovered new exit (range 59) 31145 | -3/Garrison | Discovered new exit (range 56) 31326 | -3/Garrison | Entered Research 31326 | -3/Research | Accompanied by 15 allies 31435 | -3/Research | Discovered new exit (range 13) 31710 | -3/Research | Spotted B-86 Titan 31727 | -3/Research | Allies destroyed B-86 Titan 31808 | -3/Research | Lost 4 allies 32030 | -3/Research | Lost 4 allies 32125 | -3/Research | Lost 3 allies 32155 | -3/Research | Identified exit to Garrison 32157 | -3/Research | Entered Garrison 32157 | -3/Garrison | Accompanied by 7 allies 32172 | -3/Garrison | H-XX Assembler disabled 32308 | -3/Garrison | Triggered checkpoint 32346 | -3/Garrison | Triggered checkpoint 32349 | -3/Garrison | Triggered checkpoint 32391 | -3/Garrison | Triggered checkpoint 32393 | -3/Garrison | Destroyed 8 combat bots 32393 | -3/Garrison | Lost 5 allies 32415 | -3/Garrison | System corruption reached 10% 32456 | -3/Garrison | Lost 3 allies 32486 | -3/Garrison | Triggered checkpoint 32553 | -3/Garrison | Garrison Relay disabled 32601 | -3/Garrison | Discovered new exit (range 10) 32642 | -3/Garrison | Expanded RIF knowledge: Coupler Efficiency 33072 | -3/Garrison | Spotted Striker 33072 | -3/Garrison | Spotted Striker 33075 | -3/Garrison | Assimilated Striker with formatsys_high 33078 | -3/Garrison | Assimilated Striker with formatsys_high 33111 | -3/Garrison | Rewired Striker 33113 | -3/Garrison | Rewired Striker 33137 | -3/Garrison | Discovered new exit (range 12) 33145 | -3/Garrison | Triggered checkpoint 33165 | -3/Garrison | Garrison Relay disabled 33169 | -3/Garrison | Triggered checkpoint 33337 | -3/Garrison | Triggered checkpoint 33338 | -3/Garrison | Assimilated ARC 8a with formatsys_deep 33352 | -3/Garrison | Garrison Relay disabled 33477 | -3/Garrison | Garrison Relay disabled 33486 | -3/Garrison | Garrison Relay disabled 33502 | -3/Garrison | Garrison Relay disabled 33567 | -3/Garrison | Discovered new exit (range 5) 33585 | -3/Garrison | Triggered checkpoint 33608 | -3/Garrison | Garrison Relay disabled 33731 | -3/Garrison | Triggered checkpoint 33759 | -3/Garrison | Triggered checkpoint 33792 | -3/Garrison | Garrison Relay disabled 33981 | -3/Garrison | Entered Research 33981 | -2/Research | Accompanied by 17 allies 33981 | -2/Research | Evolved 2 slots: Utility x2 34221 | -2/Research | Lost 7 allies 34231 | -2/Research | First assault squad dispatched 34358 | -2/Research | Found Prototype Protection 34358 | -2/Research | Identified Centrium Heavy Armor Plating 34609 | -2/Research | Identified exit to Garrison 34628 | -2/Research | Entered Garrison 34628 | -2/Garrison | Accompanied by 13 allies 34656 | -2/Garrison | Triggered checkpoint 34938 | -2/Garrison | Triggered checkpoint 34946 | -2/Garrison | Heavy support dispatched to Access 34956 | -2/Garrison | Triggered checkpoint 34997 | -2/Garrison | Allies destroyed Striker 35026 | -2/Garrison | Triggered checkpoint 35042 | -2/Garrison | Triggered checkpoint 35094 | -2/Garrison | Garrison Relay disabled 35167 | -2/Garrison | Discovered new exit (range 8) 35480 | -2/Garrison | Triggered checkpoint 35587 | -2/Garrison | Garrison Relay disabled 35769 | -2/Garrison | Discovered new exit (range 12) 35776 | -2/Garrison | Triggered checkpoint 35788 | -2/Garrison | Garrison Relay disabled 35844 | -2/Garrison | Heavy support dispatched to Access 35893 | -2/Garrison | Expanded RIF knowledge: Signal Jamming 36068 | -2/Garrison | Triggered checkpoint 36084 | -2/Garrison | H-XX Assembler disabled 36154 | -2/Garrison | Garrison Relay disabled 36179 | -2/Garrison | Discovered new exit (range 8) 36301 | -2/Garrison | Entered Access 36301 | -1/Access | Accompanied by 20 allies 36301 | -1/Access | Evolved 2 slots: Utility x1, Weapon x1 36551 | -1/Access | First assault squad dispatched 36559 | -1/Access | Spotted B-99 Colossus 36561 | -1/Access | Assimilated Colossus 10a with formatsys_high 36568 | -1/Access | Spotted B-99 Colossus 36570 | -1/Access | Assimilated Colossus 10b with formatsys_high 36605 | -1/Access | High security lockdown imminent 36629 | -1/Access | Garrison activated, responded to threat 36685 | -1/Access | High security lockdown engaged 36863 | -1/Access | Assimilated ARC 10a with formatsys_deep 36904 | -1/Access | Lost 19 allies 36936 | -1/Access | Spotted Striker 36994 | -1/Access | Lost 5 allies 37036 | -1/Access | Lost 6 allies 37045 | -1/Access | Spotted Executioner 37050 | -1/Access | Allies destroyed Executioner 37071 | -1/Access | Spotted Striker 37087 | -1/Access | Destroyed Striker 37103 | -1/Access | Spotted Executioner 37103 | -1/Access | Spotted Executioner 37103 | -1/Access | Spotted Striker 37105 | -1/Access | Allies destroyed Executioner 37105 | -1/Access | Allies destroyed Executioner 37109 | -1/Access | Lost 4 allies 37112 | -1/Access | Allies destroyed Striker 37222 | -1/Access | Spotted Executioner 37228 | -1/Access | Spotted Striker 37236 | -1/Access | Spotted Executioner 37242 | -1/Access | Spotted Executioner 37253 | -1/Access | Lost 4 allies 37256 | -1/Access | System corruption reached 10% 37271 | -1/Access | Core integrity fell below 50% 37301 | -1/Access | Lost 13 parts (1p3n7u2w) 37330 | -1/Access | Discovered new exit (range 3) 37356 | -1/Access | Core integrity fell below 20% 37359 | *** | Escaped! Last Messages --------------- 37334_ Hvy. Mass Driver destroyed. 37337_ Destroyed Lgt. Quantum Reactor. 37337_ Striker knocked back. 37337_ Destroyed Segregator. 37337_ Destroyed Cesium-ion Thruster. 37337_ E-15 Imp system corrupted by crushing effect. 37338_ E-15 Imp system terminally corrupted. 37338_ Propulsion Shielding fried. 37340_ P-80 Master knocked back. 37341_ E R<|K6AQ GGHA >O YZOI:9<4H>YBU 37341_ Enh. Hardcell Cannon destroyed. 37345_ Striker knocked back. 37347_ P-80 Master destroyed. 37351_ P-80 Master knocked back. 37353_ System corrupted: Enh. Hardcell Cannon jammed. 37356_ #CZZXZAT